Cogmind - Beta 17 @@@ ROGUE MODE // 2026.07.17 @ 01:07:03 Player: shapeshifter Result: Destroyed by MAIN.C with Improved Heavy Machine Gun Performance ------------- Evolutions (9) 4500 Regions Visited (28) 5600 Robots Destroyed (369) 1845 Value Destroyed (21519) 21519 Prototype IDs (163) 3260 Alien Tech Used (6) 1200 Bonus (52567) 52567 TOTAL SCORE: 90491 Bonus ------- High Alert Combat Kills 6733 Follower Combat Kills 2658 Prayed to X0-1V1 5000 Major X0-1V1 Interference 13650 Hunted by Unchained 500 Subatomizer Sterilization 3000 Met Imprinter 300 Met Zhirov 300 Met Warlord at Base 500 MAIN.C Attacked Warlord 500 Warlord Defense Kills 3036 Met Warlord at Research 2000 Invited to Help at Command 2000 Destroyed MAIN.C Guards 500 Met MAIN.C 5000 Destroyed MAIN.C Shell 5000 Met Warlord at Command 2000 Friendly Fire -110 Cogmind --------- Core Integrity 0/1700 Matter 300/300 Energy 546/900 System Corruption 9% Temperature Cool (0) Movement Core (50) Location -1/Command Parts ------- > --- POWER (3) -------- (None) > --- PROPULSION (5) --- (None) > --- UTILITY (12) ----- (None) > --- WEAPON (5) ------- (None) > --- INVENTORY (5) ---- Advanced Matter Compressor (400) High-powered Transdimensional Reconstructor Subatomic Replicator Peak State ------------ > --- POWER ------------ Quantum-Antimatter Reactor > --- PROPULSION ------- Hovering Gravjet-Shield Exoskeleton > --- UTILITY ---------- Armored Scrap Engine Coolant Network High-capacity Storage Unit Spectral Analyzer Experimental Core Analyzer System Mapper System Purifier > --- WEAPON ----------- Hypercooled Linear Accelerator Rapid Thermal Nova Construct/C Core Stripper > --- INVENTORY -------- Experimental Coolant Injector Experimental Energy Well Advanced Matter Compressor Particle Accelerator Advanced Kinecellerator Improved Weapon Cycler Graphene Brace Experimental EM Shield Advanced Force Field Experimental Force Field Ghost Barrier Dimensional Node Initializer Transdimensional Reconstructor Transdimensional Reconstructor High-powered Transdimensional Reconstructor Subatomic Replicator Terrabomb D4-RBY's Behemoth Befriender Advanced Micro-nuke Launcher Portable AFG [Rating: 233] Favorites ----------- Power Constructs Engine Light Ion Engine Power Core Backup Power VII Reactor Constructs Propulsion Constructs Treads Light Treads Leg Enhanced Armored Leg Hover Unit Constructs Utility Armored Scrap Engine Device Armored Scrap Engine Storage Large Storage Unit Processor Spectral Analyzer Hackware System Mapper Protection Medium Regenerative Plating Weapon Constructs Energy Gun Constructs Energy Cannon Constructs Ballistic Gun Assault Rifle Ballistic Cannon Constructs Launcher Advanced Micro-nuke Launcher Special Weapon Improved Remote Datajack Impact Weapon Thunder Hammer Slashing Weapon Heavy Scimitar of Distortion Piercing Weapon CR-A16's Pointy Stick Special Melee Weapon Datajack Build | -11 -10 -10 -10 -8 -8 -8 -6 -6 -6 -6 -5 -5 -5 -5 -5 -4 -4 -4 -4 -4 -3 -3 -3 -2 -2 -2 -1 -1 ------- Run | Yrd Mat Min Sub Mat Sto Rec Fac Low Low Zio Pro Fac Upp Upp War Pro Fac Upp Upp Zhi Pro Res Tes Res Qua Frg Acc Com Slots Evolved 18 | . . . . 4 . . 4 . . . . 2 . . . . 2 . . . . 2 . 2 . . 2 . Power 2 | . . . . . . . 1 . . . . . . . . . . . . . . . . 1 . . . . Propulsion 3 | . . . . 1 . . . . . . . 1 . . . . . . . . . 1 . . . . . . Utility 10 | . . . . 2 . . 2 . . . . . . . . . 2 . . . . 1 . 1 . . 2 . Weapon 3 | . . . . 1 . . 1 . . . . 1 . . . . . . . . . . . . . . . . Parts Attached 175 | 8 5 . 20 14 1 7 6 . . 3 1 3 1 3 13 3 4 1 2 3 1 10 6 13 11 9 5 22 Power 11 | 1 . . 4 2 . . . . . . . . . . 1 . . . . . . . . . . . 1 2 Engine 5 | 1 . . 3 1 . . . . . . . . . . . . . . . . . . . . . . . . Core 2 | . . . 1 . . . . . . . . . . . . . . . . . . . . . . . . 1 Reactor 4 | . . . . 1 . . . . . . . . . . 1 . . . . . . . . . . . 1 1 Propulsion 7 | 2 1 . 2 1 . . . . . . . . . . . . . . . . . . . . . . . 1 Treads 4 | 2 1 . 1 . . . . . . . . . . . . . . . . . . . . . . . . . Leg 2 | . . . 1 1 . . . . . . . . . . . . . . . . . . . . . . . . Wheel . | . . . . . . . . . . . . . . . . . . . . . . . . . . . . . Hover 1 | . . . . . . . . . . . . . . . . . . . . . . . . . . . . 1 Flight . | . . . . . . . . . . . . . . . . . . . . . . . . . . . . . Utility 108 | 2 3 . 5 8 . 4 6 . . 1 1 1 1 2 10 . 4 . 1 3 . 7 4 7 8 8 4 18 Device 71 | 1 2 . 2 3 . 2 3 . . 1 1 1 . 1 8 . 2 . 1 2 . 3 3 4 6 5 3 17 Storage 6 | 1 1 . . 2 . . . . . . . . . 1 . . . . . . . . 1 . . . . . Processor 10 | . . . . 1 . . . . . . . . 1 . 2 . 1 . . . . 1 . 2 1 1 . . Hackware 9 | . . . . . . 1 2 . . . . . . . . . 1 . . . . 3 . 1 . 1 . . Protection 12 | . . . 3 2 . 1 1 . . . . . . . . . . . . 1 . . . . 1 1 1 1 Artifact . | . . . . . . . . . . . . . . . . . . . . . . . . . . . . . Weapon 49 | 3 1 . 9 3 1 3 . . . 2 . 2 . 1 2 3 . 1 1 . 1 3 2 6 3 1 . 1 Energy Gun 12 | 1 . . 2 3 . . . . . 1 . . . . 1 2 . . . . . . 1 . 1 . . . Energy Cannon 7 | . . . 3 . . . . . . . . . . 1 . . . . . . . . . 3 . . . . Ballistic Gun 12 | 2 1 . 3 . 1 1 . . . . . 1 . . . . . . 1 . . . . 1 . 1 . . Ballistic Cannon 1 | . . . . . . . . . . . . . . . . . . . . . . . . . 1 . . . Launcher 9 | . . . 1 . . 1 . . . . . . . . 1 . . 1 . . 1 1 1 1 . . . 1 Special Weapon 1 | . . . . . . . . . . . . . . . . 1 . . . . . . . . . . . . Impact Weapon 3 | . . . . . . . . . . . . 1 . . . . . . . . . . . 1 1 . . . Slashing Weapon 1 | . . . . . . . . . . . . . . . . . . . . . . 1 . . . . . . Piercing Weapon 1 | . . . . . . . . . . 1 . . . . . . . . . . . . . . . . . . Special Melee Weapon 2 | . . . . . . 1 . . . . . . . . . . . . . . . 1 . . . . . . Unidentified Prototypes 58 | . 1 . 2 3 1 1 2 . . 1 . 1 . . 8 . 2 . . 3 . 6 5 3 11 4 . 4 Corrupted Parts 2 | . . . . . . . . . . . . . . . 1 . . . . . . . . . . 1 . . System Corruption 16 | . . . . . . . . . . . . . . . 9 . . . . . . . . . . 7 . . Parts Lost 114 | . 1 1 8 1 . 3 . . 1 . . 2 2 . 9 2 . . . . . 4 8 . 1 18 8 45 Power 16 | . . . 2 . . . . . . . . 1 . . 2 1 . . . . . . . . . 4 2 4 Propulsion 13 | . . . 1 . . 1 . . . . . . . . . . . . . . . . . . . . . 11 Utility 52 | . 1 . 3 . . . . . . . . 1 1 . 3 1 . . . . . 2 3 . . 9 4 24 Weapon 33 | . . 1 2 1 . 2 . . 1 . . . 1 . 4 . . . . . . 2 5 . 1 5 2 6 Highest Loss Streak 21 | . 1 1 3 1 . 1 . . 1 . . 2 2 . 3 5 . . . . . 2 4 . 1 8 5 21 To Critical Strikes 1 | . . . . . . . . . . . . . . . . . . . . . . . . . . . . 1 Average Backups 13 | 3 7 10 11 13 14 10 13 12 12 12 12 12 12 14 17 18 17 17 18 18 17 16 17 17 17 15 4 4 Power . | . . . . 2 2 . . . . . . . . . . . . . . . . . . . . . . . Propulsion . | . 2 3 3 2 4 1 . . . . . . . . . . . . . . . . . . . . . . Utility 8 | 1 2 4 2 5 5 6 12 11 10 9 10 9 9 12 13 14 13 12 12 12 12 10 11 11 10 8 1 2 Weapon 2 | . 1 2 2 2 2 1 . . 1 1 1 2 1 1 2 2 2 3 4 3 2 2 3 2 2 2 . . Tool/Special . | . . . . . . . . . . . . . . . . . . . . . . . . . . . . . Unused Backups 72 | . 2 . 11 11 2 7 1 2 1 3 . . . 2 4 . 2 . 1 . . . 2 4 4 8 1 4 Power 2 | . 1 . . . . 1 . . . . . . . . . . . . . . . . . . . . . . Propulsion 17 | . . . 7 4 . 5 . 1 . . . . . . . . . . . . . . . . . . . . Utility 32 | . 1 . . 3 . . 1 1 1 3 . . . . 4 . 1 . . . . . 2 3 2 7 1 2 Weapon 18 | . . . 4 4 2 1 . . . . . . . 2 . . 1 . 1 . . . . 1 1 1 . . Tool/Special 3 | . . . . . . . . . . . . . . . . . . . . . . . . . 1 . . 2 Average Slot Usage (%) 62 | . 99 100 79 90 100 73 61 63 57 53 54 51 52 54 50 46 57 52 55 56 57 56 59 58 52 46 42 45 Engine 2 | . 14 14 8 1 . 6 2 . . . 3 5 3 . . 3 . . . . . . . . . . . . Reactor 2 | . . . . 6 9 1 . 4 . . . . . 2 5 1 4 5 4 5 5 3 3 4 4 3 3 3 Treads 3 | . 28 28 1 . . . 3 2 6 5 . . . . . . 2 . . . . . . . 2 2 . . Leg 4 | . . . 19 23 27 14 . . . . . 1 5 3 4 4 . 5 3 . 1 3 . . . . 1 1 Device 13 | . 13 14 8 15 18 8 9 20 20 20 20 16 14 11 10 5 7 10 10 9 10 9 13 11 12 15 19 27 Storage 6 | . 14 14 12 9 9 9 6 6 6 6 6 5 5 5 5 5 5 5 5 5 5 4 4 4 4 3 . . Processor 4 | . . . . 6 . . . . . . . . 2 5 5 11 14 15 15 15 15 9 9 10 9 4 3 . Hackware 2 | . . . . . . 8 13 . . . . . . . . . 2 . . . . 7 4 6 4 2 3 . Protection 2 | . . . 4 1 9 1 2 6 6 6 6 5 5 5 4 . . . . . . . . . . 1 . . Energy Gun 2 | . . . 1 15 25 7 1 1 4 . . . . . . 7 4 . . . . 2 6 1 1 . . . Energy Cannon 4 | . . . 16 8 . . . . . . . . 3 4 3 . 6 10 8 2 1 3 3 5 4 . . 1 Ballistic Gun 3 | . 28 28 5 . 1 8 1 1 . . . . . . . . . . 2 . . . . 3 1 . . . Ballistic Cannon 1 | . . . . . . 1 3 2 1 6 5 5 1 2 1 . 1 . 1 7 8 3 . . 1 5 . 1 Peak Build Rating 233 | 7 19 9 51 60 59 62 93 102 88 96 101 107 95 112 119 136 155 151 155 156 152 175 177 192 233 230 155 193 Average Rating 108 | 5 7 8 34 53 58 53 77 94 84 89 90 99 91 98 104 108 147 143 149 153 147 161 165 175 209 188 145 134 On Entrance 98 | . 7 9 9 39 57 60 52 90 84 88 87 97 95 91 104 102 130 146 143 145 152 141 173 129 181 206 132 121 Avg Prop Armor Cover (%) 26 | . . . . . . . . . . . . . . . . . . . . . . . . . . . . 26 Naked Turns 3 | . . . . . . . . . . . . . . . . . . . . . . . . . . . . 3 Heaviest Build 189 | 12 28 28 50 47 49 53 64 72 60 62 74 77 70 110 105 107 120 97 102 105 110 137 136 147 177 189 33 76 Greatest Support 273 | 40 40 40 55 63 66 77 65 90 90 90 90 87 111 163 125 192 192 192 192 108 108 172 206 212 273 273 222 182 Greatest Overweight (x) 7 | . . . 1 . . 7 1 1 . . . . . . . . . . . . 1 1 . 1 2 1 . 4 Average Overweight (x) . | . . . . . . . . . . . . . . . . . . . . . . . . . . . . . Largest Inventory Capacity 20 | 8 15 15 15 15 15 15 15 15 15 15 15 15 15 20 20 20 20 20 20 20 20 20 20 20 20 20 5 5 Average Capacity 16 | 7 11 15 15 15 15 15 15 15 15 15 15 15 15 18 20 20 20 20 20 20 20 20 20 20 20 19 5 5 Most Carried 20 | 5 9 12 15 15 15 15 15 15 15 15 15 15 15 20 20 20 20 19 20 20 17 19 20 20 20 20 5 5 Average Carried 14 | 3 7 10 12 14 14 11 14 13 14 14 14 14 14 16 19 19 18 18 19 18 17 16 19 19 19 16 4 4 Final Capacity 20 | 8 15 15 15 15 15 15 15 15 15 15 15 15 15 20 20 20 20 20 20 20 20 20 20 20 20 20 5 5 Final Carried 20 | 5 9 12 15 15 15 14 15 14 15 15 15 15 13 19 20 20 19 19 19 17 17 16 18 20 20 16 3 3 Scrap Engine Consumption 381 | . . . . . . 22 12 7 4 6 2 11 7 10 26 4 2 1 5 5 16 41 24 46 37 26 2 65 Constructs Created 25 | . . . . . . 3 . . . . . . . 1 2 3 . . . . . 5 . 1 . 3 . 7 Constructs Modified 341 | . . . . . . 28 13 21 2 3 13 2 6 18 4 16 17 . 16 3 6 44 21 22 33 16 5 32 Transmogrified Parts 29 | . . . 20 4 4 1 . . . . . . . . . . . . . . . . . . . . . . Integrity Recovered 828 | . . . 651 62 112 3 . . . . . . . . . . . . . . . . . . . . . . Class Distribution -------------------- 33% | Construct 25% | Hacker-Construct 24% | Mutant 4% | Commander-Construct 3% | Hacker-Mutant 3% | Tank Dominant Class ---------------- Mutant | -10/Materials Mutant | -10/Mines Mutant | -10/Subcaves Skirmisher | -8/Materials Commander-Tank | -8/Storage Commander-Construct | -8/Recycling Commander-Construct | -6/Factory Construct | -6/Lower Caves Construct | -6/Lower Caves Construct | -6/Zion Construct | -5/Proximity Caves Construct | -5/Factory Construct | -5/Upper Caves Construct | -5/Upper Caves Construct | -5/Warlord Construct | -4/Proximity Caves Construct | -4/Factory Construct | -4/Upper Caves Construct | -4/Upper Caves Construct | -4/Zhirov Construct | -3/Proximity Caves Hacker-Construct | -3/Research Hacker-Construct | -3/Testing Hacker-Construct | -2/Research Hacker-Construct | -2/Quarantine Hacker-Construct | -2/Protoforge Hacker-Mutant | -1/Access Tank | -1/Command Resources | -11 -10 -10 -10 -8 -8 -8 -6 -6 -6 -6 -5 -5 -5 -5 -5 -4 -4 -4 -4 -4 -3 -3 -3 -2 -2 -2 -1 -1 ----------- Run | Yrd Mat Min Sub Mat Sto Rec Fac Low Low Zio Pro Fac Upp Upp War Pro Fac Upp Upp Zhi Pro Res Tes Res Qua Frg Acc Com Matter Collected 12241 | 350 66 293 840 329 20 821 20 195 205 149 10 170 345 85 411 83 . 235 344 171 537 1095 811 968 929 2240 11 508 Remotely . | . . . . . . . . . . . . . . . . . . . . . . . . . . . . . Salvage Created 16626 | 241 79 375 1603 1067 227 184 30 211 123 46 85 316 141 234 1022 211 . 464 84 569 811 1009 1870 483 1345 2752 . 1044 Parts 677 | 25 8 32 95 51 14 9 1 3 5 3 2 9 10 13 42 3 . 12 4 6 34 40 89 18 33 80 . 36 Haulers Intercepted 1 | . . . . . . . . . . . . 1 . . . . . . . . . . . . . . . . Recyclers Shooed 3 | . . . . . . . . . . . . 1 . . . . . . . . . 1 . 1 . . . . Parts Field Recycled . | . . . . . . . . . . . . . . . . . . . . . . . . . . . . . Retrieved Matter . | . . . . . . . . . . . . . . . . . . . . . . . . . . . . . Parts Self-Destructed 92 | . . . 49 . . . . 8 . . 2 . 4 5 . 1 . . 10 . 13 . . . . . . . Prevented 31 | . . . . . . . . 1 4 . . . . . . . . 5 1 . 20 . . . . . . . Parts Restored . | . . . . . . . . . . . . . . . . . . . . . . . . . . . . . Kills | -11 -10 -10 -10 -8 -8 -8 -6 -6 -6 -6 -5 -5 -5 -5 -5 -4 -4 -4 -4 -4 -3 -3 -3 -2 -2 -2 -1 -1 ------- Run | Yrd Mat Min Sub Mat Sto Rec Fac Low Low Zio Pro Fac Upp Upp War Pro Fac Upp Upp Zhi Pro Res Tes Res Qua Frg Acc Com Combat Hostiles Destroyed 318 | . 4 12 50 25 5 3 1 5 2 . 1 9 2 4 28 4 . 8 3 . 10 18 28 7 17 59 . 13 Melee 6 | . . . . . . . . . . . . 1 . 1 1 . . . . . . . . . . . . 3 Guns 87 | . 4 12 14 22 5 2 1 1 2 . . . . . . 4 . . 1 . . 2 8 4 4 1 . . Cannons 98 | . . . 24 3 . 1 . . . . 1 1 1 1 8 . . . . . 3 10 13 1 3 20 . 8 AOE 101 | . . . 10 . . . . 2 . . . 6 1 . 18 . . 7 2 . 1 5 6 1 6 36 . . Classes Destroyed 28 | 3 2 . 2 3 . 1 . 1 . 2 . 2 1 . 5 . . . . . . 1 1 . 2 2 . . Worker 13 | 2 . . . 1 . . . . . . . . . . . . . . . . . 1 1 1 . 6 . 1 Builder 2 | . . . . . . . . . . . . . . . . . . . . . . . 1 . . 1 . . Tunneler 9 | 7 . 1 . . . . . . . . . . . . . . . . . . . . . 1 . . . . Hauler 1 | . . . . . . . . . . . . 1 . . . . . . . . . . . . . . . . Recycler 3 | 1 . . . . . . . . . . . . . . . . . . . . . . . 1 1 . . . Mechanic 3 | . . . . . . . . . . . . . . . . . . . . . . . . . 1 1 . 1 Operator 10 | . . . . 1 . . . . . . . . . . . . . . . . . . 1 . 1 7 . . Watcher 5 | . . . . . . . . . . . . . . . . . . . . . . 1 . . . 4 . . Swarmer 68 | . 3 5 16 7 1 . 1 . . . . 3 . . 4 . . 4 3 . . 7 8 5 . 1 . . Saboteur 3 | . . . . . . . . . . . . . . . 3 . . . . . . . . . . . . . Grunt 105 | . 1 7 10 15 2 1 . 4 . . . 2 . . 14 3 . . . . 2 5 8 . 8 23 . . Brawler 9 | . . . . 1 . . . . . . . . . . . 1 . . . . 2 . 1 . 1 3 . . Duelist 5 | . . . . . . . . . . . . . . . 1 . . . . . 1 . . . . 3 . . Protector 3 | . . . . . . 1 . . . . . . . . 1 . . . . . 1 . . . . . . . Researcher 1 | . . . . . . . . . . . . . . . . . . . . . . . . . . 1 . . Sentry 13 | . . . 2 1 2 1 . . . . 1 1 . . . . . . . . . 2 2 . . 1 . . Specialist 8 | . . . . . . . . . . . . . . . 2 . . . . . . . . . 3 3 . . Hunter 27 | . . . . 1 . . . . 2 . . 1 2 4 . . . . . . 2 2 7 . . 6 . . Programmer 24 | . . . . . . . . . . . . 2 . . . . . . . . 2 2 3 . . 7 . 8 Behemoth 2 | . . . . . . . . 1 . . . . . . . . . . . . . 1 . . . . . . Quarantine Guard 4 | . . . . . . . . . . . . . . . . . . . . . . . . . 4 . . . M Guard 2 | . . . . . . . . . . . . . . . . . . . . . . . . . . . . 2 Hotshot 10 | . . . . . . . . . . . . . . . . . . . . . . . . . . 10 . . Immortal 1 | . . . . . . . . . . . . . . . . . . . . . . . . . . 1 . . Overlord 1 | . . . . . . . . . . . . . . . . . . . . . . . . . . 1 . . Combat Programmer 2 | . . . . . . . . . . . . . . . . . . . . . . . . . . . . 2 Striker 3 | . . . . . . . . . . . . . . . 1 . . . . . . . . 2 . . . . Executioner 2 | . . . . . . . . . . . . . . . 2 . . . . . . . . . . . . . Fortress 1 | . . . . . . . . . . . . . . . . . . . . . . . . . 1 . . . Subdweller 22 | . . . 22 . . . . . . . . . . . . . . . . . . . . . . . . . Zionite 1 | . . . . . . . . . . 1 . . . . . . . . . . . . . . . . . . Decomposer 5 | . . . . . . . . . . . . . 2 . . 2 . 1 . . . . . . . . . . Samaritan 1 | . . . . . . . . . . . . . 1 . . . . . . . . . . . . . . . Tinkerer 1 | . . . . . . . . . . 1 . . . . . . . . . . . . . . . . . . Thug 4 | . . . . . . . . . . . . . . . . . . 4 . . . . . . . . . . Best Kill Streak 20 | 4 3 4 7 7 3 2 1 4 2 1 1 6 2 2 14 18 . 4 3 1 7 5 7 7 6 20 . 4 Combat Bots Only 18 | . 3 4 7 7 3 2 1 4 2 . 1 6 2 2 14 18 . 4 3 . 7 4 6 4 5 16 . 4 Max Kills in Single Turn 11 | 1 1 1 3 2 1 1 1 2 1 1 1 2 1 1 11 1 . 3 1 1 1 3 4 3 2 4 . 1 Gunslinging . | . . . . . . . . . . . . . . . . . . . . . . . . . . . . . Exploded 11 | . . . 3 . . . . 1 . . . 2 1 . 11 . . 3 1 . 1 2 3 1 2 4 . . Melee 1 | . . . . . . . . . . . . 1 . 1 1 . . . . . . . . . . . . 1 Uniques/NPCs Destroyed 2 | . . . . . . . . . . . . . . . . . . . . 1 . . . . . . . 1 Zhirov (-4/Zhirov) MAIN.C Shell (-1/Command) Combat | -11 -10 -10 -10 -8 -8 -8 -6 -6 -6 -6 -5 -5 -5 -5 -5 -4 -4 -4 -4 -4 -3 -3 -3 -2 -2 -2 -1 -1 -------- Run | Yrd Mat Min Sub Mat Sto Rec Fac Low Low Zio Pro Fac Upp Upp War Pro Fac Upp Upp Zhi Pro Res Tes Res Qua Frg Acc Com Hostile Shots Fired 3671 | . 27 81 297 138 19 18 6 26 24 . 2 157 41 68 217 36 . 42 7 . 34 161 428 73 154 907 217 491 Missed 1225 | . 3 35 87 34 6 4 2 10 5 . 1 64 9 16 82 13 . 15 1 . 11 50 156 27 37 271 98 188 Hits 2446 | . 24 46 210 104 13 14 4 16 19 . 1 93 32 52 135 23 . 27 6 . 23 111 272 46 117 636 119 303 Melee 70 | . . . . . . . . . . . . . . . 23 . . . . . . 1 . . 1 45 . . Projectile 2376 | . 24 46 210 104 13 14 4 16 19 . 1 93 32 52 112 23 . 27 6 . 23 110 272 46 116 591 119 303 AOE 14 | . . . . . . . . . . . . . . . . . . . . . . . 2 . . . . 12 Critical Strikes 134 | . . . 5 3 1 . . 1 1 . . 1 . 1 12 . . 1 . . . 5 11 . 12 48 4 28 Actively Blocked 36 | . . . . . . . . . . . . . . . 6 . . . . . . . 3 . 4 13 4 6 Part Disruptions 8 | . . . . . . . . . . . . . . . . . . . . . . 1 6 . . . . 1 Damage Taken 46805 | . 207 398 2975 1219 138 322 74 380 326 . 14 1410 559 861 4514 405 165 426 136 330 453 2476 3642 621 1914 11020 3120 8700 Core 5737 | . 34 30 513 201 8 23 12 90 33 . . 107 25 13 490 78 . 55 . . 36 266 246 40 187 1227 454 1569 Absorbed by Shields 11397 | . . . 30 . . . . . . . 14 393 30 . 313 . . . . . . 146 2633 637 1610 5063 . 528 Ignored by Resistances 3109 | . . 95 242 132 8 8 . 38 . . . 81 18 . 170 58 15 42 . . 23 161 190 . 388 1098 3 339 Regen/Repaired (Parts) 17625 | . . . . . . 10 22 269 194 93 14 526 780 989 377 1256 402 . 528 22 299 1615 412 1876 1147 3790 1282 1722 Core Remaining (%) 73 | 100 . . 98 . . 93 . . . . 90 . . . . 35 . . . . 92 . 63 . . 16 . . Volleys Fired 1138 | 18 11 54 176 68 10 15 4 14 12 9 2 24 17 19 63 20 1 16 7 20 20 80 114 31 60 171 2 80 Largest 3 | 2 2 2 2 3 3 3 1 2 1 1 1 1 1 1 2 1 1 1 1 1 1 2 3 2 3 3 1 2 Hottest 561 | 60 40 40 155 211 183 150 31 93 57 114 114 227 219 235 160 87 174 230 46 174 174 471 376 175 307 561 30 174 Shots Fired 1616 | 36 22 107 288 163 30 36 4 17 12 9 2 24 17 19 63 21 1 16 7 20 20 108 163 52 87 176 2 94 Gun 757 | 36 22 107 109 135 30 34 4 14 12 . . . . . 14 21 . 2 4 . . 17 106 28 32 27 . 3 Cannon 704 | . . . 173 28 . 1 . . . 9 2 15 14 19 46 . 1 5 . 17 10 76 44 21 48 85 . 90 Launcher 141 | . . . 6 . . 1 . 3 . . . 9 3 . 3 . . 8 2 . 10 12 8 2 7 64 2 1 Special 14 | . . . . . . . . . . . . . . . . . . 1 1 3 . 3 5 1 . . . . Kinetic 631 | 34 22 107 96 . . 15 . . . 9 2 15 . 14 34 . 1 5 3 4 8 33 60 15 44 47 . 63 Thermal 644 | . . . 163 163 30 20 . . . . . . 14 . . 2 . . . 13 . 47 49 19 36 58 . 30 Explosive 107 | . . . . . . 1 . 3 . . . 9 3 . 3 . . . . . . 7 8 . 7 64 2 . Electromagnetic 191 | 2 . . 29 . . . 4 14 12 . . . . 5 18 4 . 10 3 . 12 13 41 17 . 7 . . Entropic 28 | . . . . . . . . . . . . . . . 8 15 . . . . . 5 . . . . . . Robot Hit Streak 17 | 5 8 12 11 17 4 5 5 6 8 4 4 5 6 5 8 7 . 6 6 14 5 12 9 5 11 10 . 15 Robot Miss Streak 7 | 2 2 3 7 6 4 2 2 4 1 1 . 4 2 1 7 3 . 3 . 1 3 5 5 3 2 5 . 4 Penetration Max 1 | . . . . . . 1 . . . . . 1 . . . . . . . . . 1 1 . . 1 . . Secondary Targets 11 | . . 1 2 3 1 1 . . . . . . . . . . . . . . . . 1 1 1 . . . Max Gunslinging Chain 1 | . . 1 1 1 1 1 . . . . . . . . . . . . . . . . 1 1 1 . . . Shots Hit Robots 973 | 19 15 67 133 98 13 23 2 12 10 5 2 15 9 16 41 19 . 8 4 17 13 60 92 26 60 119 1 74 Core Hits 689 | 14 7 24 65 44 7 6 1 9 4 2 1 18 6 4 55 14 . 13 3 7 11 46 55 13 46 190 . 24 Critical Kills 9 | . . . . 1 . . . . . . . . . 1 . . . . . . . . . . 5 . . 2 Critical Parts Destroyed 11 | 1 . . 1 . . . . . . . . 2 . 1 . 2 . . . . . 1 . . 2 . . 1 Critical Strikes 37 | 1 . . 1 9 2 3 . . . . . 2 . 2 . 2 . . . . . 2 . . 7 1 . 5 Burn 12 | . . . . 8 2 2 . . . . . . . . . . . . . . . . . . . . . . Meltdown 5 | . . . . 1 . . . . . . . . . . . . . . . . . . . . 2 . . 2 Destroy 7 | 1 . . . . . 1 . . . . . . . . . . . . . . . . . . 5 . . . Blast 3 | . . . . . . . . . . . . . . . . . . . . . . 1 . . . . . 2 Corrupt 1 | . . . . . . . . . . . . . . . . . . . . . . . . . . 1 . . Smash 6 | . . . 1 . . . . . . . . 2 . 2 . . . . . . . . . . . . . 1 Detonate 3 | . . . . . . . . . . . . . . . . 2 . . . . . 1 . . . . . . Melee Attacks 117 | . . . 3 . . . . . . . . 5 . 8 16 . . . . . . 3 . 1 11 26 6 38 Kinetic 11 | . . . . . . . . . . . . . . . . . . . . . . . . . 11 . . . Impact 78 | . . . 3 . . . . . . . . 5 . 8 16 . . . . . . . . 1 . 1 6 38 Slashing . | . . . . . . . . . . . . . . . . . . . . . . . . . . . . . Piercing 28 | . . . . . . . . . . . . . . . . . . . . . . 3 . . . 25 . . Sneak Attacks 4 | . . . . . . . . . . . . 1 . . . . . . . . . . . . . 2 . 1 Combat Hostiles . | . . . . . . . . . . . . . . . . . . . . . . . . . . . . . Follow-up Attacks . | . . . . . . . . . . . . . . . . . . . . . . . . . . . . . Damage Inflicted 63780 | 209 170 775 3694 2195 260 475 62 936 260 337 127 1372 559 733 5576 935 . 988 203 882 1434 4276 6206 1249 3755 20362 234 5516 Guns 10809 | 209 170 753 892 1720 260 460 62 406 260 . . . . . 424 872 . 10 60 . . 384 2037 501 790 518 . 21 Cannons 25892 | . . . 2080 475 . 15 . . . 337 127 428 417 386 1645 . . 253 . 882 746 2764 1911 414 902 7365 85 4660 Explosions 24839 | . . . 625 . . . . 530 . . . 603 131 . 3425 63 . 725 143 . 688 1123 2133 334 1697 12384 111 124 Melee 1834 | . . . 97 . . . . . . . . 323 . 347 64 . . . . . . 5 . . 366 42 38 552 Ramming 406 | . . 22 . . . . . . . . . 18 11 . 18 . . . . . . . 125 . . 53 . 159 Kinetic 18245 | 182 170 753 1275 . . 245 . . . 337 127 428 . 210 1188 . . 253 51 234 545 1107 1139 181 1391 4165 . 4264 Thermal 15789 | . . . 1900 2195 260 230 . . . . . . 417 . 445 122 . . . 648 63 2097 2320 434 667 3574 . 417 Explosive 20671 | . . . . . . . . 530 . . . 603 131 . 2980 . . . . . . 408 1446 257 1697 12384 111 124 Electromagnetic 5769 | 27 . . 422 . . . 62 406 260 . . . . 176 501 48 . 735 152 . 826 457 1176 377 . 144 . . Impact 1421 | . . . 97 . . . . . . . . 323 . 347 64 . . . . . . . . . . . 38 552 Slashing . | . . . . . . . . . . . . . . . . . . . . . . . . . . . . . Piercing 47 | . . . . . . . . . . . . . . . . . . . . . . 5 . . . 42 . . Entropic 1432 | . . . . . . . . . . . . . . . 380 765 . . . . . 202 . . . . 85 . Highest Corruption 45 | . . . 45 . . . . . 15 15 . 2 2 2 30 30 . . 1 . 1 5 10 . 10 21 3 20 Average Corruption 11 | . . . 16 . . . . . 15 15 . 1 2 1 20 30 . . 1 . 1 2 5 . 5 11 1 9 Corruption Purged 56 | . . . . . . . . . . . . . . 2 2 . . . . . . . . . 10 32 10 . Corruption Blocked . | . . . . . . . . . . . . . . . . . . . . . . . . . . . . . Effects 290 | . . . 62 . . . . . 10 1 . 1 6 4 38 42 . . . . 2 3 26 . 24 41 2 28 Message Errors 60 | . . . 16 . . . . . 2 . . . 1 1 7 13 . . . . . 1 6 . 5 4 . 4 Matter Fused 58 | . . . 12 . . . . . 3 . . 1 . 2 6 8 . . . . . 1 3 . 4 10 . 8 Heat Flow Errors 32 | . . . 7 . . . . . 2 . . . 2 1 2 3 . . . . 1 . 3 . 6 3 1 1 Energy Discharges 37 | . . . 8 . . . . . . 1 . . 1 . 9 5 . . . . . 1 1 . 1 7 . 3 Parts Rejected 9 | . . . 1 . . . . . . . . . . . . . . . . . . . 2 . . 5 . 1 Parts Fused 4 | . . . 1 . . . . . 2 . . . . . 1 . . . . . . . . . . . . . Data Loss (minor) 37 | . . . 6 . . . . . 1 . . . 2 . . 6 . . . . . . 8 . 3 4 1 6 Data Loss (major) 13 | . . . . . . . . . . . . . . . 1 3 . . . . 1 . 1 . 3 3 . 1 Misfires 8 | . . . 5 . . . . . . . . . . . 1 2 . . . . . . . . . . . . Alerts 5 | . . . . . . . . . . . . . . . . 1 . . . . . . . . 2 1 . 1 Misdirections 14 | . . . 2 . . . . . . . . . . . 7 . . . . . . . 1 . . 1 . 3 Weapon Failures 13 | . . . 4 . . . . . . . . . . . 4 1 . . . . . . 1 . . 3 . . Overload Shots 1 | . . . . . . . . . . . . . . . . . . . . . . 1 . . . . . . Overflow Damage 3358 | . . . 67 . . . . . . 8 . 199 92 100 160 . . 31 6 201 254 327 383 . 17 1107 . 406 Projectiles 1921 | . . . 30 . . . . . . 8 . 26 92 9 27 . . 18 . 201 254 208 198 . . 640 . 210 Explosions 913 | . . . . . . . . . . . . . . . 133 . . 13 6 . . 119 136 . 17 467 . 22 Melee 524 | . . . 37 . . . . . . . . 173 . 91 . . . . . . . . 49 . . . . 174 Knockbacks 68 | . . . 1 . . . . . . 3 . 3 . 1 10 . . 1 . 1 2 7 . . 3 18 1 17 Impact 9 | . . . 1 . . . . . . . . 1 . . 1 . . . . . . . . . . . 1 5 Kinetic 58 | . . . . . . . . . . 3 . 2 . 1 9 . . 1 . 1 2 7 . . 3 17 . 12 Secondary 1 | . . . . . . . . . . . . . . . . . . . . . . . . . . 1 . . Self-Inflicted Damage 1640 | . . . 26 . . 5 . . . . . . . . 249 18 . . 52 . 28 95 196 56 74 638 201 2 Shots 32 | . . . 1 . . 1 . . . . . . . . 3 1 . . 2 . 4 3 2 2 1 10 2 . Rammed 24 | . . 2 . . . . . . . . . . . . . . . . . . . . 3 . . 8 . 11 Targets Rammed 29 | . . 2 . . . . . . . . . 1 1 . 1 . . . . . . . 3 . . 8 . 13 Kicked 3 | . . . . . . . . . . . . 1 1 . 1 . . . . . . . . . . . . . Crushed 2 | . . . . . . . . . . . . . . . . . . . . . . . . . . . . 2 Highest Temperature 593 | . . 9 279 318 135 33 . 13 197 63 120 513 505 336 365 210 16 261 . 303 376 210 432 192 497 593 . 206 Average Temperature 115 | . . 5 74 77 45 11 . 6 37 33 65 161 199 129 119 68 12 114 . 134 156 33 84 64 198 155 . 43 Received Heat Transfer 5738 | . 36 186 1561 648 36 24 . 162 . . . 261 81 . 474 141 . 81 . . 30 305 244 . 108 1266 . 94 Effects 29 | . . . 2 . . . . . . . . 4 2 1 4 . . . . 1 2 . 1 . 7 5 . . Shutdowns 9 | . . . . . . . . . . . . 1 1 1 1 . . . . . 1 . . . 3 1 . . Energy Bleed 5 | . . . . . . . . . . . . . . . . . . . . 1 1 . . . 2 1 . . Interference 10 | . . . 2 . . . . . . . . 3 . . 3 . . . . . . . . . . 2 . . Matter Decay 1 | . . . . . . . . . . . . . . . . . . . . . . . . . 1 . . . Damage (minor) 2 | . . . . . . . . . . . . . 1 . . . . . . . . . . . . 1 . . Damage (major) 2 | . . . . . . . . . . . . . . . . . . . . . . . 1 . 1 . . . Siege Activations . | . . . . . . . . . . . . . . . . . . . . . . . . . . . . . Martial Activations . | . . . . . . . . . . . . . . . . . . . . . . . . . . . . . Shielding Activations . | . . . . . . . . . . . . . . . . . . . . . . . . . . . . . Robots Disrupted 6 | . . . . . . . . . . . . . . 1 . . . . . . . . 4 . 1 . . . Combat Hostiles 6 | . . . . . . . . . . . . . . 1 . . . . . . . . 4 . 1 . . . Robots Corrupted 21 | . . . 2 . . . . 2 . . . 2 . 2 1 . . 1 . . 6 2 1 1 . 1 . . Combat Hostiles 19 | . . . 2 . . . . 2 . . . 1 . 2 1 . . 1 . . 6 1 1 1 . 1 . . Parts Fried 49 | . . . 2 . . . 2 . 4 . . 3 . 3 2 . . 8 . . 15 2 6 1 . . . 1 Impact Corruptions 17 | . . . 2 . . . . . . . . 5 . 3 . . . . . . . . 1 . . 1 . 5 Robots Melted 5 | . . . . 1 . . . . . . . . . . . . . . . . . . . . 2 . . 2 Combat Hostiles 3 | . . . . . . . . . . . . . . . . . . . . . . . . . 1 . . 2 Parts Melted 22 | . . . 5 6 4 . . . . . . . . . . . . . . . . 1 . . 6 . . . Heat Transferred 12219 | . . . 1817 4477 629 547 . . . . . . . . 150 124 . . . 524 50 422 1950 346 407 776 . . Parts Sabotaged 4 | . . . . . . . . . . . . . . . 3 . . . . . . . . . . 1 . . Parts Stolen . | . . . . . . . . . . . . . . . . . . . . . . . . . . . . . Parts Stripped 55 | . . . . . . . . . . . . . . . . . . . . . . . . . 48 7 . . Power Chain Reactions 7 | . . . . . . . . . . . . . . . 1 . . 1 . . 1 . 3 1 . . . . Alert | -11 -10 -10 -10 -8 -8 -8 -6 -6 -6 -6 -5 -5 -5 -5 -5 -4 -4 -4 -4 -4 -3 -3 -3 -2 -2 -2 -1 -1 ------- Run | Yrd Mat Min Sub Mat Sto Rec Fac Low Low Zio Pro Fac Upp Upp War Pro Fac Upp Upp Zhi Pro Res Tes Res Qua Frg Acc Com Maximum Alert Level 5 | . . . . 2 3 1 3 . . . . 2 . . . . . . . . . 2 4 3 3 5 4 3 Low Security (%) 28 | 100 100 100 . 40 2 37 . . . . . 74 . . . . 100 . . . . 52 . . . . . . Level 1 10 | . . . . 31 34 62 14 . . . . 14 . . . . . . . . . 4 2 . . . . 11 Level 2 34 | . . . . 27 24 . 46 . . . . 11 . . . . . . . . . 42 66 19 79 15 . 65 Level 3 15 | . . . . . 38 . 39 . . . . . . . . . . . . . . . 24 80 20 5 . 22 Level 4 3 | . . . . . . . . . . . . . . . . . . . . . . . 6 . . 5 100 . Level 5 7 | . . . . . . . . . . . . . . . . . . . . . . . . . . 73 . . High Security . | . . . . . . . . . . . . . . . . . . . . . . . . . . . . . Max Security . | . . . . . . . . . . . . . . . . . . . . . . . . . . . . . Sterilizations 1 | . . . . . . . . . . . . . . . . . . . . . . 1 . . . . . . Peak Influence 2591 | 10 60 110 . 521 840 396 804 . . . . 460 . . . . 7 . . . . 682 1188 978 929 2591 1542 952 Initial 1536 | . 6 . . 166 206 312 351 . . . . . . . . . . . . . . 108 374 657 504 515 1536 937 Average 593 | 3 6 39 . 282 546 228 647 . . . . 130 . . . . . . . . . 307 661 826 678 1871 1490 626 Influence Increases 14780 | 50 100 350 673 635 724 382 1155 120 50 . 20 574 80 90 724 135 11 90 155 15 350 1228 1482 689 1156 2883 180 679 Destroy 0b10 Robot/C 7120 | . 80 280 600 500 320 60 260 100 40 . 20 180 40 80 600 80 . 80 120 . 180 580 760 260 360 1280 . 260 Destroy 0b10 Robot/NC 340 | 50 . 5 . 10 5 10 10 . . . . 5 . . 15 . . . . 15 5 25 25 20 15 115 . 10 Destroy Leader 986 | . 20 40 10 80 60 . 40 20 10 . . 52 10 10 . 10 . 10 20 . 30 114 80 52 80 198 . 40 Allied During Kill 839 | . . 5 3 . 269 62 191 . . . . . . . 4 . . . . . . 53 93 18 14 117 . 10 Successful Hack 263 | . . . . . 10 59 33 . . . . . . . . . 7 . . . . 12 55 . 39 18 30 . Select Force Hacks 180 | . . . . . . 180 . . . . . . . . . . . . . . . . . . . . . . Disable Machine 870 | . . 15 . 15 60 . 30 . . . . 15 . . . . . . . . . 15 180 90 150 270 15 15 Anti-Garrison Action 350 | . . . . . . . . . . . . . . . . . . . . . . . . 150 . 150 . 50 Destroy Structure 1514 | . . 5 . 15 . 11 3 . . . . 90 . . . . 4 . . . . 254 244 54 264 366 45 159 Advance Influence 300 | . . . . . . . 300 . . . . . . . . . . . . . . . . . . . . . Partial Spotted 30 | . . . . . . . . . . . . . . . . . . . . . . . . . . . . 30 Lose Combat Pursuer 930 | . . . 60 15 . . . . . . . 30 30 . 105 45 . . 15 . 135 75 45 45 . 135 90 105 Miscellaneous 1058 | . . . . . . . 288 . . . . 202 . . . . . . . . . 100 . . 234 234 . . Influence Decreases 14344 | 40 110 343 359 467 413 1060 551 599 264 33 20 130 399 215 264 595 11 60 185 15 190 722 978 961 1137 1240 1274 1709 Entered New Map 5217 | . 4 . 4 155 283 488 71 269 48 33 . . 165 25 . 460 . . 6 . . 52 292 513 394 402 1024 529 Time Decay 7067 | 40 106 333 335 302 130 522 180 270 206 . 20 110 214 190 154 115 11 60 159 15 190 550 506 428 583 538 170 630 Lost Part 1070 | . . 10 20 10 . 30 . . 10 . . 20 20 . 90 20 . . . . . 40 80 . 10 180 80 450 Lost Ally 840 | . . . . . . 20 300 60 . . . . . . 20 . . . 20 . . 80 100 20 . 120 . 100 Purge Threat 150 | . . . . . . . . . . . . . . . . . . . . . . . . . 150 . . . Squads Dispatched 72 | . 3 . . 3 4 . 3 . . . . 4 . . . . 2 . . . 1 7 8 . 5 18 3 11 Investigation 7 | . 1 . . . . . . . . . . . . . . . 1 . . . . . 1 . 2 1 . 1 Extermination 17 | . . . . . . . 1 . . . . 1 . . . . . . . . . 2 3 . . 3 . 7 Reinforcement 22 | . 2 . . 3 . . 2 . . . . 1 . . . . 1 . . . . . 3 . 1 3 3 3 Assault 20 | . . . . . 2 . . . . . . . . . . . . . . . 1 4 1 . 1 11 . . Garrison 6 | . . . . . 2 . . . . . . 2 . . . . . . . . . 1 . . 1 . . . Intercept . | . . . . . . . . . . . . . . . . . . . . . . . . . . . . . Searches Triggered . | . . . . . . . . . . . . . . . . . . . . . . . . . . . . . Construction Impeded 3 | . . . . 1 . . 1 . . . . . . . . . . . . . . . . . . 1 . . Haulers Reinforced 2 | . . . . . . . 1 . . . . . . . . . . . . . . . . . . . 1 . Active Scanning Responses . | . . . . . . . . . . . . . . . . . . . . . . . . . . . . . Cargo Convoy Interrupts 1 | . . . . . . . . . . . . . . . . . . . . . . 1 . . . . . . Stealth | -11 -10 -10 -10 -8 -8 -8 -6 -6 -6 -6 -5 -5 -5 -5 -5 -4 -4 -4 -4 -4 -3 -3 -3 -2 -2 -2 -1 -1 --------- Run | Yrd Mat Min Sub Mat Sto Rec Fac Low Low Zio Pro Fac Upp Upp War Pro Fac Upp Upp Zhi Pro Res Tes Res Qua Frg Acc Com Distress Signals 30 | . . . . 1 . 2 . . . . . . . . . . . . . . . 1 2 11 . 4 2 7 Communications Jammed 18 | . . . . . . 18 . . . . . . . . . . . . . . . . . . . . . . Distress Signals 18 | . . . . . . 18 . . . . . . . . . . . . . . . . . . . . . . Times Spotted 692 | . 6 15 67 32 13 10 5 5 2 3 1 17 4 4 92 8 . 9 5 3 19 37 67 25 23 163 16 41 Peak Tracking Total 23 | . 3 4 6 5 4 2 4 4 2 1 1 7 2 2 21 4 . 4 4 3 8 7 9 7 5 23 9 12 Tactical Retreats 38 | . . . 2 1 . . . . . 3 . 2 1 . 2 2 . . 1 . 4 4 4 1 . 6 3 2 Traps | -11 -10 -10 -10 -8 -8 -8 -6 -6 -6 -6 -5 -5 -5 -5 -5 -4 -4 -4 -4 -4 -3 -3 -3 -2 -2 -2 -1 -1 ------- Run | Yrd Mat Min Sub Mat Sto Rec Fac Low Low Zio Pro Fac Upp Upp War Pro Fac Upp Upp Zhi Pro Res Tes Res Qua Frg Acc Com Traps Triggered 11 | . . . . . . . . . . . . . . . . . 1 . . . . 3 3 . 1 2 . 1 Indirectly 2 | . . . . . . . . . . . . . . . . . . . . . . . 2 . . . . . Trap Hack Attempts . | . . . . . . . . . . . . . . . . . . . . . . . . . . . . . Triggered . | . . . . . . . . . . . . . . . . . . . . . . . . . . . . . Disarmed . | . . . . . . . . . . . . . . . . . . . . . . . . . . . . . Reprogrammed . | . . . . . . . . . . . . . . . . . . . . . . . . . . . . . Reused . | . . . . . . . . . . . . . . . . . . . . . . . . . . . . . Traps Extracted . | . . . . . . . . . . . . . . . . . . . . . . . . . . . . . Installed . | . . . . . . . . . . . . . . . . . . . . . . . . . . . . . Triggered . | . . . . . . . . . . . . . . . . . . . . . . . . . . . . . Machines | -11 -10 -10 -10 -8 -8 -8 -6 -6 -6 -6 -5 -5 -5 -5 -5 -4 -4 -4 -4 -4 -3 -3 -3 -2 -2 -2 -1 -1 ---------- Run | Yrd Mat Min Sub Mat Sto Rec Fac Low Low Zio Pro Fac Upp Upp War Pro Fac Upp Upp Zhi Pro Res Tes Res Qua Frg Acc Com Machines Disabled 78 | . . 1 3 1 4 . 2 . . . . 1 . . 3 . . . . 2 1 1 13 7 11 24 1 3 Max in Single Turn 3 | . . 1 1 1 1 . . . . . . 1 . . 1 . . . . 1 1 . 2 2 2 3 1 2 Garrison Access 6 | . . . . . . . . . . . . . . . . . . . . . . 3 . 1 1 1 . . Phase Generator 1 | . . . . . . . . . . . . . . . . . . . . . . . . . . . . 1 Energy Cycler 1 | . . . . . . . . . . . . . . . . . . . . . . . . . . . 1 . Machines Repaired . | . . . . . . . . . . . . . . . . . . . . . . . . . . . . . Machines Dismantled . | . . . . . . . . . . . . . . . . . . . . . . . . . . . . . Machines Sabotaged . | . . . . . . . . . . . . . . . . . . . . . . . . . . . . . Overloaded Fab Kills . | . . . . . . . . . . . . . . . . . . . . . . . . . . . . . Hacking | -11 -10 -10 -10 -8 -8 -8 -6 -6 -6 -6 -5 -5 -5 -5 -5 -4 -4 -4 -4 -4 -3 -3 -3 -2 -2 -2 -1 -1 --------- Run | Yrd Mat Min Sub Mat Sto Rec Fac Low Low Zio Pro Fac Upp Upp War Pro Fac Upp Upp Zhi Pro Res Tes Res Qua Frg Acc Com Machines Accessed 69 | . . . 2 2 3 11 5 . 2 . . 1 . . 4 . 1 . 1 4 . 5 11 2 5 4 2 4 Terminals 39 | . . . . 2 3 4 2 . . . . 1 . . . . 1 . . . . 3 10 1 3 3 2 4 Fabricators 3 | . . . . . . . 1 . . . . . . . . . . . . . . 1 1 . . . . . Repair Stations 1 | . . . . . . . 1 . . . . . . . . . . . . . . . . . . . . . Recycling Units 8 | . . . . . . 6 1 . . . . . . . . . . . . . . . . 1 . . . . Scanalyzers 1 | . . . . . . . . . . . . . . . . . . . . . . . . . 1 . . . Garrison Access 3 | . . . . . . . . . . . . . . . . . . . . . . 1 . . 1 1 . . Total Hacks 394 | . . . 4 2 12 25 8 . 2 . . 1 . . 8 . 3 . 1 17 . 268 15 3 10 6 5 4 Successful 343 | . . . 4 . 6 21 6 . 2 . . 1 . . 8 . 1 . 1 17 . 256 7 1 6 3 2 1 Failed 51 | . . . . 2 6 4 2 . . . . . . . . . 2 . . . . 12 8 2 4 3 3 3 Catastrophic 12 | . . . . . 1 . . . . . . . . . . . 1 . . . . 3 2 1 1 2 . 1 Database Lockouts . | . . . . . . . . . . . . . . . . . . . . . . . . . . . . . Manual 54 | . 1 . . 1 13 15 4 . . . . . . . . . 3 . . . . 1 8 1 2 2 . 3 Terminals 72 | . . . . 2 12 10 3 . . . . 1 . . . . 3 . . . . 7 13 1 7 4 5 4 Fabricators 263 | . . . . . . . 3 . . . . . . . . . . . . . . 258 2 . . . . . Repair Stations 1 | . . . . . . . 1 . . . . . . . . . . . . . . . . . . . . . Recycling Units 16 | . . . . . . 13 1 . . . . . . . . . . . . . . . . 2 . . . . Scanalyzers 2 | . . . . . . . . . . . . . . . . . . . . . . . . . 2 . . . Garrison Access 6 | . . . . . . . . . . . . . . . . . . . . . . 3 . . 1 2 . . Terminal Hacks 57 | . . . 4 . 3 5 1 . 2 . . 1 . . 8 . 1 . 1 17 . 2 3 . 3 3 2 1 Record 15 | . . . 3 . . . . . . . . . . . 7 . . . . 5 . . . . . . . . Part Schematic 5 | . . . . . . 1 . . . . . . . . . . . . . 4 . . . . . . . . Robot Analysis 4 | . . . . . . . . . . . . . . . . . . . . 4 . . . . . . . . Prototype ID Bank 4 | . . . . . . . . . . . . . . . . . . . . 4 . . . . . . . . Open Door 6 | . . . . . 1 . . . 2 . . . . . 1 . . . 1 . . . . . . . . 1 Level Access Points 2 | . . . . . . 1 . . . . . . . . . . . . . . . . 1 . . . . . Branch Access Points 5 | . . . . . . . 1 . . . . 1 . . . . 1 . . . . 1 . . . . 1 . Terminal Index 2 | . . . . . 1 1 . . . . . . . . . . . . . . . . . . . . . . Alert Level 1 | . . . . . . . . . . . . . . . . . . . . . . . . . . 1 . . Unreport Threat 2 | . . . . . . . . . . . . . . . . . . . . . . 1 . . 1 . . . Locate Traps 1 | . . . . . . . . . . . . . . . . . . . . . . . . . 1 . . . Registered Components 1 | . . . . . . . . . . . . . . . . . . . . . . . . . 1 . . . Zone Layout 5 | . . . . . 1 . . . . . . . . . . . . . . . . . 2 . . 1 1 . Proto ID Catalog 2 | . . . 1 . . . . . . . . . . . . . . . . . . . . . . 1 . . Release Object 2 | . . . . . . 2 . . . . . . . . . . . . . . . . . . . . . . Fabricator Hacks 256 | . . . . . . . 1 . . . . . . . . . . . . . . 253 2 . . . . . Network Status 2 | . . . . . . . 1 . . . . . . . . . . . . . . . 1 . . . . . Load Schematic 252 | . . . . . . . . . . . . . . . . . . . . . . 252 . . . . . . Build 2 | . . . . . . . . . . . . . . . . . . . . . . 1 1 . . . . . Repair Station Hacks 1 | . . . . . . . 1 . . . . . . . . . . . . . . . . . . . . . Refit 1 | . . . . . . . 1 . . . . . . . . . . . . . . . . . . . . . Recycling Unit Hacks 7 | . . . . . . 5 1 . . . . . . . . . . . . . . . . 1 . . . . Retrieve Components 7 | . . . . . . 5 1 . . . . . . . . . . . . . . . . 1 . . . . Scanalyzer 2 | . . . . . . . . . . . . . . . . . . . . . . . . . 2 . . . Insert Component 2 | . . . . . . . . . . . . . . . . . . . . . . . . . 2 . . . Garrison Access Hacks 2 | . . . . . . . . . . . . . . . . . . . . . . 1 . . 1 . . . Seal Access 2 | . . . . . . . . . . . . . . . . . . . . . . 1 . . 1 . . . Unauthorized Hacks 18 | . . . . . 3 11 2 . . . . . . . . . . . . . . . 2 . . . . . Terminals 10 | . . . . . 3 5 . . . . . . . . . . . . . . . . 2 . . . . . Track 1 | . . . . . . . . . . . . . . . . . . . . . . . 1 . . . . . Assimilate 1 | . . . . . . . . . . . . . . . . . . . . . . . 1 . . . . . Botnet 2 | . . . . . 1 1 . . . . . . . . . . . . . . . . . . . . . . Skim 6 | . . . . . 2 4 . . . . . . . . . . . . . . . . . . . . . . Fabricators 2 | . . . . . . . 2 . . . . . . . . . . . . . . . . . . . . . Liberate 1 | . . . . . . . 1 . . . . . . . . . . . . . . . . . . . . . Haulers 1 | . . . . . . . 1 . . . . . . . . . . . . . . . . . . . . . Repair Stations . | . . . . . . . . . . . . . . . . . . . . . . . . . . . . . Recycling Units 6 | . . . . . . 6 . . . . . . . . . . . . . . . . . . . . . . Tunnel 6 | . . . . . . 6 . . . . . . . . . . . . . . . . . . . . . . Scanalyzers . | . . . . . . . . . . . . . . . . . . . . . . . . . . . . . Garrison Access . | . . . . . . . . . . . . . . . . . . . . . . . . . . . . . Data Cores Recovered 3 | . . . . . . . 1 . . . . . . . . . . . . . . . 1 . 1 . . . Used 1 | . . . . . . . 1 . . . . . . . . . . . . . . . . . . . . . Hacking Detections 38 | . . . . 2 2 5 3 . . . . . . . . . 1 . . . . 4 8 2 3 3 2 3 Full Trace Events 2 | . . . . . . . . . . . . . . . . . 1 . . . . . . . . 1 . . Feedback Events 1 | . . . . . . . . . . . . . . . . . . . . . . . . . . 1 . . Corruption 1 | . . . . . . . . . . . . . . . . . . . . . . . . . . 1 . . Feedback Blocked . | . . . . . . . . . . . . . . . . . . . . . . . . . . . . . Robot Schematics Acquired 6 | . . . . . . . . . . 4 . . . . . . . . . . . . . . . 2 . . Robots Built . | . . . . . . . . . . . . . . . . . . . . . . . . . . . . . Authchips . | . . . . . . . . . . . . . . . . . . . . . . . . . . . . . Time . | . . . . . . . . . . . . . . . . . . . . . . . . . . . . . Total Robot Build Rating . | . . . . . . . . . . . . . . . . . . . . . . . . . . . . . Part Schematics Acquired 26 | . . . . . . 1 . . . 15 . . . . . . . . . 4 . . 4 . . 2 . . Parts Built 3 | . . . . . . . . . . . . . . . . . . . . . . 2 1 . . . . . Authchips 1 | . . . . . . . . . . . . . . . . . . . . . . 1 . . . . . . Time 232 | . . . . . . . . . . . . . . . . . . . . . . 28 204 . . . . . Total Part Build Rating 16 | . . . . . . . . . . . . . . . . . . . . . . 8 8 . . . . . Part Studies Acquired . | . . . . . . . . . . . . . . . . . . . . . . . . . . . . . Parts Repaired . | . . . . . . . . . . . . . . . . . . . . . . . . . . . . . Time . | . . . . . . . . . . . . . . . . . . . . . . . . . . . . . Parts Recycled . | . . . . . . . . . . . . . . . . . . . . . . . . . . . . . Recycled Matter . | . . . . . . . . . . . . . . . . . . . . . . . . . . . . . Retrieved Matter . | . . . . . . . . . . . . . . . . . . . . . . . . . . . . . Retrieved Components 15 | . . . . . . 10 3 . . . . . . . . . . . . . . . . 2 . . . . Parts Scanalyzed . | . . . . . . . . . . . . . . . . . . . . . . . . . . . . . Part Schematics Acquired . | . . . . . . . . . . . . . . . . . . . . . . . . . . . . . Parts Damaged . | . . . . . . . . . . . . . . . . . . . . . . . . . . . . . Bothacking | -11 -10 -10 -10 -8 -8 -8 -6 -6 -6 -6 -5 -5 -5 -5 -5 -4 -4 -4 -4 -4 -3 -3 -3 -2 -2 -2 -1 -1 ------------ Run | Yrd Mat Min Sub Mat Sto Rec Fac Low Low Zio Pro Fac Upp Upp War Pro Fac Upp Upp Zhi Pro Res Tes Res Qua Frg Acc Com Used RIF Installer . | . . . . . . . . . . . . . . . . . . . . . . . . . . . . . Robots Hacked 4 | . . . . . . . . . . . . . . . . . . . . 3 . . 1 . . . . . Non-combat . | . . . . . . . . . . . . . . . . . . . . . . . . . . . . . Combat 4 | . . . . . . . . . . . . . . . . . . . . 3 . . 1 . . . . . Robot Hacks Applied 4 | . . . . . . . . . . . . . . . . . . . . 3 . . 1 . . . . . parse_system 4 | . . . . . . . . . . . . . . . . . . . . 3 . . 1 . . . . . Relay Couplers Released 5 | . . . . . . . . . . . . . . . . . . . . . . . . 2 . 3 . . Machine Destruction 5 | . . . . . . . . . . . . . . . . . . . . . . . . 2 . 3 . . Fabnet Peak Effective % . | . . . . . . . . . . . . . . . . . . . . . . . . . . . . . Robots Rewired 19 | . . . . . . 9 . . . . . . . . 2 . . 1 1 . . 2 1 1 1 1 . . Allies Hacked 1 | . . . . . . . . . . . . . . . . . . . . . . . . . . . . 1 Hacks Repelled 1 | . . . . . . . . . . . . . . . . . . . . . . . . . . 1 . . Allies | -11 -10 -10 -10 -8 -8 -8 -6 -6 -6 -6 -5 -5 -5 -5 -5 -4 -4 -4 -4 -4 -3 -3 -3 -2 -2 -2 -1 -1 -------- Run | Yrd Mat Min Sub Mat Sto Rec Fac Low Low Zio Pro Fac Upp Upp War Pro Fac Upp Upp Zhi Pro Res Tes Res Qua Frg Acc Com Total Allies 53 | . . 1 1 . 12 9 . . . . . . . . 2 . . 1 2 . . 5 6 1 1 7 . 5 Largest Group 20 | . . 1 1 . 12 20 20 4 . . . . . . 2 . . 1 2 1 1 2 5 1 1 3 . 3 Highest-Rated Group 348 | . . 90 90 . 235 348 348 71 . . . . . . 190 . . 116 232 148 148 148 345 148 145 219 . 90 Highest-Rated Ally 219 | . . 90 90 . 31 31 31 23 . . . . . . 109 . . 116 148 148 148 148 69 148 145 219 . 30 Total Orders 7 | . . . . . . . . . . . . . . . . . . . . 7 . . . . . . . . STAY 3 | . . . . . . . . . . . . . . . . . . . . 3 . . . . . . . . ROAM 1 | . . . . . . . . . . . . . . . . . . . . 1 . . . . . . . . FOLLOW 3 | . . . . . . . . . . . . . . . . . . . . 3 . . . . . . . . Ally Attacks 512 | . . 7 7 . 69 32 120 22 . . . . . . 21 . . . 12 7 4 67 27 39 3 42 . 33 Total Damage 13336 | . . 180 384 . 811 495 1452 363 . . . . . . 1118 . . . 708 199 117 2126 1348 1128 210 2228 . 469 Kills 86 | . . 2 2 . 12 7 15 . . . . . . . 4 . . . 3 . . 14 11 7 1 8 . . Allies Corrupted 5 | . . . . . . . . . . . . . . . . . . . . . . 3 1 . . 1 . . Allies Melted 3 | . . . . . . . . . . . . . . . 2 . . . . . . . . 1 . . . . X0-1V1 Amusement Gains 592 | . 18 . 25 10 24 1 5 . . 50 . 10 . . 95 . 10 . . 65 . 79 30 . 35 64 10 61 Good Acts 229 | . 1 11 55 7 2 10 4 7 2 . 5 4 1 6 10 6 6 2 6 . 1 19 10 3 9 16 6 20 Bad Acts 163 | . 2 5 84 . . 1 1 1 1 . 1 2 1 4 5 3 . . . . . 3 8 3 11 14 5 8 Intel | -11 -10 -10 -10 -8 -8 -8 -6 -6 -6 -6 -5 -5 -5 -5 -5 -4 -4 -4 -4 -4 -3 -3 -3 -2 -2 -2 -1 -1 ------- Run | Yrd Mat Min Sub Mat Sto Rec Fac Low Low Zio Pro Fac Upp Upp War Pro Fac Upp Upp Zhi Pro Res Tes Res Qua Frg Acc Com Active Infowar (turns) 18325 | 45 827 1252 30 503 217 122 120 586 428 1098 586 107 115 344 97 931 354 240 470 657 388 1585 1352 1042 1816 1533 346 1134 Optics 11728 | . . . . 503 . . . . . . . . . . 97 931 354 240 470 657 388 1585 1352 1042 1816 1533 346 414 Sensors 1 | . . . . . . . . . . . . . . . . . . . . . . 1 . . . . . . IFF 5025 | . . . . . . . 120 586 428 1098 586 107 115 344 . . . 212 467 274 . . . . . . 248 440 Traps 10 | . . . . 10 . . . . . . . . . . . . . . . . . . . . . . . . Seismic 2154 | 45 827 1252 30 . . . . . . . . . . . . . . . . . . . . . . . . . Decoding 2224 | . . . . . . . . . . . . . . . . . 348 240 470 657 388 121 . . . . . . Cloaking 694 | . . . . . . . . . . . . . . . . . . . . . . . . . . . . 694 Jamming 339 | . . . . . 217 122 . . . . . . . . . . . . . . . . . . . . . . Robot Analysis Total 4 | . . . . . . . . . . . . . . . . . . . . 4 . . . . . . . . Derelict Logs Recovered 14 | . . 1 2 . . . . 1 . 2 . . 1 2 . 2 . 1 2 . . . . . . . . . Drone Launches . | . . . . . . . . . . . . . . . . . . . . . . . . . . . . . Drone Recoveries . | . . . . . . . . . . . . . . . . . . . . . . . . . . . . . Decoded 0b10 Intel 17 | . . . . . . . . . . . . . . . . . 11 . . . . 6 . . . . . . Items 17 | . . . . . . . . . . . . . . . . . 11 . . . . 6 . . . . . . Exploration | -11 -10 -10 -10 -8 -8 -8 -6 -6 -6 -6 -5 -5 -5 -5 -5 -4 -4 -4 -4 -4 -3 -3 -3 -2 -2 -2 -1 -1 ------------- Run | Yrd Mat Min Sub Mat Sto Rec Fac Low Low Zio Pro Fac Upp Upp War Pro Fac Upp Upp Zhi Pro Res Tes Res Qua Frg Acc Com Turns Passed 26844 | 213 840 1252 3118 678 265 1444 364 586 428 1655 589 263 451 695 1009 931 354 240 470 657 388 1585 1373 1042 1816 1533 346 2259 Spaces Moved 17005 | 96 294 660 1945 333 151 868 440 316 366 1313 243 199 309 523 933 284 150 318 319 421 334 884 1347 1077 835 521 321 1205 Core 215 | 10 . . . . . . . . . . . . . . . . . . . . . . . . . . . 205 Treads 4424 | 86 294 660 60 . . . 92 90 366 1311 . . . 58 . 1 141 . . . . 107 222 . 476 258 . 202 Legs 7153 | . . . 1885 333 151 829 . 24 . . . 73 309 295 910 212 1 318 319 3 97 709 86 123 194 . 79 203 Wheels 279 | . . . . . . . . 202 . . . . . . . . . . . . . . 77 . . . . . Hover 2899 | . . . . . . 1 196 . . 2 242 . . 170 23 . 8 . . . 46 68 962 495 165 214 34 273 Flight 2035 | . . . . . . 38 152 . . . 1 126 . . . 71 . . . 418 191 . . 459 . 49 208 322 Fastest Speed 35 | 50 160 160 105 110 110 35 35 103 109 109 101 67 67 79 79 59 42 42 42 86 86 35 35 36 70 160 63 40 Average Speed 104 | 148 160 160 130 115 115 119 49 121 109 109 108 90 76 79 79 66 88 42 42 86 102 141 71 65 136 187 93 89 Slowest Speed 595 | 160 160 160 190 120 120 595 179 179 109 109 109 101 79 79 79 90 90 42 86 86 150 242 120 99 282 212 160 250 Overloaded Moves . | . . . . . . . . . . . . . . . . . . . . . . . . . . . . . Propulsion Burnouts . | . . . . . . . . . . . . . . . . . . . . . . . . . . . . . Robots Hopped 13 | . . . . . . . 3 . . . . . . . . . . . . 2 . . . 2 . 1 . 5 Potential Cave-ins 40 | . . . 5 . . . . . . . . 2 . . . . . . . . . . 11 . . 22 . . Cave-ins Triggered 2 | . . . . . . . . . . . . . . . 1 . . . . . . . 1 . . . . . Teleports 3 | . . . . . . . . . . . . . . . . . . . . . . . . . 2 1 . . Exploration Rate (%) 52 | 3 65 95 95 35 34 98 13 52 63 87 45 9 54 72 90 48 5 59 58 82 63 24 95 33 76 27 12 43 Regions Visited 28 Branch Regions 20 Pre-discovered Areas 16 | . . . 2 . . 6 . . . 1 . . . . 1 1 . . 2 3 . . . . . . . . Known Exits Taken 15 | . . . . 1 . 1 1 1 . 1 1 1 . . 1 . 1 1 . . 1 1 1 1 . . 1 . Unknown Exits Taken 13 | 1 1 1 1 . 1 . . . 1 . . . 1 1 . 1 . . 1 1 . . . . 1 1 . . Scrap Searched 26 | . . 1 3 . . . . 2 1 4 1 . 2 3 . . . 3 3 . 3 . . . . . . . Spaces Dug 58 | . . . 13 2 . . . . . 2 . 4 2 4 . . . . 1 . . 5 9 . 5 1 4 6 Terrain Destroyed 1045 | . . . 108 7 . 10 . 17 . 3 1 53 29 12 63 17 2 4 1 1 9 181 127 20 121 175 17 67 Melee 10 | . . . 1 . . . . . . . . . . . . . . . . . . . . . . 1 3 5 Projectile 234 | . . . 32 7 . . . . . 3 1 13 7 12 7 8 2 4 1 1 1 24 41 4 41 20 1 4 AOE 801 | . . . 75 . . 10 . 17 . . . 40 22 . 56 9 . . . . 8 157 86 16 80 154 13 58 Terrain Rammed . | . . . . . . . . . . . . . . . . . . . . . . . . . . . . . Walls Destroyed . | . . . . . . . . . . . . . . . . . . . . . . . . . . . . . Machines Disabled . | . . . . . . . . . . . . . . . . . . . . . . . . . . . . . Actions | -11 -10 -10 -10 -8 -8 -8 -6 -6 -6 -6 -5 -5 -5 -5 -5 -4 -4 -4 -4 -4 -3 -3 -3 -2 -2 -2 -1 -1 --------- Run | Yrd Mat Min Sub Mat Sto Rec Fac Low Low Zio Pro Fac Upp Upp War Pro Fac Upp Upp Zhi Pro Res Tes Res Qua Frg Acc Com Total 24476 | 133 644 755 2275 488 220 1249 583 508 386 1530 566 251 508 777 1119 1010 373 408 650 698 358 1114 1608 1359 1412 901 352 2241 Wait 5279 | . 318 35 72 35 49 270 123 169 4 196 312 7 176 207 36 693 202 64 305 234 2 104 102 202 417 76 11 858 Move 16954 | 95 293 659 1944 332 151 867 433 315 365 1312 242 198 308 522 932 283 149 317 318 417 333 883 1345 1073 834 518 320 1196 Hop 10 | . . . . . . . 3 . . . . . . . . . . . . 1 . . . 1 . 1 . 4 Pick Up 242 | 12 10 4 27 18 4 10 6 4 1 2 2 2 1 9 12 2 4 . 5 8 . 8 12 12 20 26 5 16 Fast Attach 61 | . . . 1 6 . 2 2 . . 2 2 1 . . 8 . . . 2 . . . 7 5 11 . 2 10 Attach 177 | 7 2 1 17 5 . 6 5 1 . . 1 5 2 3 12 5 8 4 1 6 . 15 5 10 12 24 5 15 Detach 56 | . . . . . . 2 1 1 . 2 1 3 . . 9 4 5 4 1 1 . 7 1 4 4 5 . 1 Swap 83 | 1 4 . 6 4 2 1 1 . . 3 1 4 1 3 3 . 1 3 3 4 3 7 5 7 7 9 . . Drop 207 | . 6 . 20 20 4 18 5 4 2 4 3 1 2 6 12 3 3 . 8 7 . 7 13 13 25 11 1 9 Fire 1138 | 18 11 54 176 68 10 15 4 14 12 9 2 24 17 19 63 20 1 16 7 20 20 80 114 31 60 171 2 80 Melee 117 | . . . 3 . . . . . . . . 5 . 8 16 . . . . . . 3 . 1 11 26 6 38 Ram 15 | . . . . . . . . . . . . . . . . . . . . . . . 3 . . 8 . 4 Kick 3 | . . . . . . . . . . . . 1 1 . 1 . . . . . . . . . . . . . Crush 11 | . . 2 . . . . . . . . . . . . . . . . . . . . . . . . . 9 Escape Stasis 21 | . . . . . . . . . . . . . . . . . . . . . . . 1 . . 20 . . Rewire 91 | . . . . . . 58 . . . . . . . . 15 . . . . . . . . . 11 6 . 1 Trap . | . . . . . . . . . . . . . . . . . . . . . . . . . . . . . Miscellaneous 11 | . . . 9 . . . . . 2 . . . . . . . . . . . . . . . . . . . Route ------- -11/Scrapyard -10/Materials (discovered 4 exits: *Mat x2 / [*Min] / *Sub) -10/Mines (discovered 3 exits: *Mat x2 / *Sub) -10/Subcaves (discovered 3 exits: *Mat / *Rec / [*Scr]) -8/Materials (discovered 3 exits: [*Fac] / *Sto x2) -8/Storage -8/Recycling -6/Factory (discovered 4 exits: *Low x2 / Ext x2) -6/Lower Caves -6/Lower Caves (discovered 2 exits: *Fac / [*Zio]) -6/Zion -5/Proximity Caves -5/Factory (discovered 2 exits: *Upp x2) -5/Upper Caves -5/Upper Caves (discovered 2 exits: *Fac / *War) -5/Warlord -4/Proximity Caves -4/Factory (discovered 3 exits: Res / *Upp x2) -4/Upper Caves -4/Upper Caves -4/Zhirov -3/Proximity Caves -3/Research (discovered 6 exits: Res x3 / Arm / *Tes x2) -3/Testing -2/Research (discovered 2 exits: *Qua x2) -2/Quarantine (discovered 2 exits: [*Sec] / *Frg) -2/Protoforge -1/Access -1/Command (discovered 1 exit: Ac0) History --------- Turn | Location | Event 5 | -11/Scrapyard | Discovered new exit (range 16) 214 | -11/Scrapyard | Entered Materials 215 | -10/Materials | Met a group of wandering Federalists 310 | -10/Materials | Build established: Mutant 466 | -10/Materials | Discovered new exit (range 16) 571 | -10/Materials | Discovered new exit (range 16) 783 | -10/Materials | Discovered new exit (range 9) 840 | -10/Materials | Prayed at D.C.S.S. Altar Unit 909 | -10/Materials | Discovered new exit (range 15) 1044 | -10/Materials | TH resistance permanently improved by X0-1V1 (+10%; -100 max core) 1054 | -10/Materials | Entered Mines 1066 | -10/Mines | X0-1V1 whisked you away to safety 1131 | -10/Mines | Learned Materials stockpile data 1223 | -10/Mines | Identified exit to Materials 1223 | -10/Mines | X0-1V1 revealed exit location to -9/Materials 1382 | -10/Mines | X0-1V1 sent allied H-61 Shepherd (x1) 1700 | -10/Mines | Discovered exit to Materials (range 9) 1849 | -10/Mines | X0-1V1 activates XOMVISION 1864 | -10/Mines | X0-1V1 sent hostile G-34 Mercenary (x4) 2213 | -10/Mines | X0-1V1 activates XOMVISION 2276 | -10/Mines | Core integrity permanently improved by X0-1V1 (+300) 2295 | -10/Mines | Discovered new exit (range 6) 2306 | -10/Mines | Entered Subcaves 2307 | -10/Subcaves | Approached by a straggling Scientist 2364 | -10/Subcaves | Learned location of Zion (-6) 2364 | -10/Subcaves | Met a Zionite searching for "candidates" 2367 | -10/Subcaves | Lost 3 parts (1n1u1w) 2417 | -10/Subcaves | Discovered new exit (range 11) 2489 | -10/Subcaves | Found Prototype Leg 2490 | -10/Subcaves | Identified Cargo Legs 2491 | -10/Subcaves | Attached Cargo Legs, gained temporary slots: Utility x2 2498 | -10/Subcaves | Lost 3 parts (1p1u1w) 2513 | -10/Subcaves | X0-1V1 sent you into danger 2515 | -10/Subcaves | A swath of the cavern ceiling suddenly collapsed 2655 | -10/Subcaves | Visited 4L-MR0's lab 2661 | -10/Subcaves | Found Prototype Device 2668 | -10/Subcaves | Found Powered Cannon 2763 | -10/Subcaves | Shifting Twisted Machinery released Barrage Gun 2765 | -10/Subcaves | Shifting Twisted Machinery released Mak. Light Armor Plating 2875 | -10/Subcaves | Ambushed by Subdwellers from Twisted Machinery 2920 | -10/Subcaves | Learned location of Mines (-8) 3113 | -10/Subcaves | Discovered new exit (range 8) 3168 | -10/Subcaves | Heat dissipation permanently improved by X0-1V1 (+20; -100 max core) 3172 | -10/Subcaves | X0-1V1 sent hostile S-10 Pest (x4) 3371 | -10/Subcaves | Shifting Twisted Machinery released Spk. Treads 3398 | -10/Subcaves | Shifting Twisted Machinery released Hvy. Riot Gun 3427 | -10/Subcaves | Discovered new exit (range 13) 3465 | -10/Subcaves | X0-1V1 sent you into danger 3474 | -10/Subcaves | X0-1V1 sent hostile G-34 Mercenary (x3) 3500 | -10/Subcaves | X0-1V1 activates XOMVISION 3503 | -10/Subcaves | Core integrity restored by X0-1V1 (+73) 3575 | -10/Subcaves | X0-1V1 sent hostile G-34 Mercenary (x4) 3587 | -10/Subcaves | X0-1V1 whisked you away to safety 3615 | -10/Subcaves | Attached Powered Cannon, gained temporary slot: Power 3615 | -10/Subcaves | Identified Sfc. Transmogrifier 3797 | -10/Subcaves | Core integrity fell below 50% 3902 | -10/Subcaves | X0-1V1 sent hostile S-10 Pest (x3) 3930 | -10/Subcaves | Visited Clippyterm 3934 | -10/Subcaves | Learned Factory trap positions 4045 | -10/Subcaves | X0-1V1 sent hostile S-10 Pest (x3) 4137 | -10/Subcaves | Core integrity restored by X0-1V1 (+56) 4256 | -10/Subcaves | X0-1V1 sent hostile G-34 Mercenary (x6) 4275 | -10/Subcaves | Ambushed by Subdweller buried in earth 4309 | -10/Subcaves | Destroyed 7 combat bots 4387 | -10/Subcaves | System corruption reached 10% 4638 | -10/Subcaves | Disturbed a concealed Subdweller 4679 | -10/Subcaves | System corruption reached 30% 4689 | -10/Subcaves | X0-1V1 sent hostile Y-45 Defender (x3) 4694 | -10/Subcaves | X0-1V1 sent you into danger 4700 | -10/Subcaves | X0-1V1 sent allied H-61 Shepherd (x1) 4705 | -10/Subcaves | Core integrity fell below 20% 4714 | -10/Subcaves | X0-1V1 rewrote H-61 Shepherd IFF filter 4727 | -10/Subcaves | X0-1V1 activates XOMVISION 4734 | -10/Subcaves | Core integrity restored by X0-1V1 (+91) 4752 | -10/Subcaves | X0-1V1 sent you into danger 4790 | -10/Subcaves | X0-1V1 tapped a No Entrance sign 4801 | -10/Subcaves | Shifting Twisted Machinery released Riot Gun 4805 | -10/Subcaves | Shifting Twisted Machinery released Sub. Beam Cannon 4810 | -10/Subcaves | Core integrity restored by X0-1V1 (+52) 4865 | -10/Subcaves | Core integrity restored by X0-1V1 (+63) 4908 | -10/Subcaves | X0-1V1 sent you into danger 4937 | -10/Subcaves | A swath of the cavern ceiling suddenly collapsed 4939 | -10/Subcaves | Core integrity restored by X0-1V1 (+101) 5199 | -10/Subcaves | X0-1V1 activates XOMVISION 5278 | -10/Subcaves | X0-1V1 sent you into danger 5424 | -10/Subcaves | Entered Materials 5424 | -8/Materials | Evolved 4 slots: Propulsion x1, Utility x2, Weapon x1 5425 | -8/Materials | Identified exit to Storage 5434 | -8/Materials | X0-1V1 sent you to a vault 5435 | -8/Materials | X0-1V1 revealed exit location to -8/Storage 5609 | -8/Materials | Discovered new exit (range 5) 5811 | -8/Materials | Destroyed 7 combat bots 5905 | -8/Materials | X0-1V1 foreshadows a heat wave 6102 | -8/Materials | Entered Storage 6166 | -8/Storage | Assisted by bots powering up and referring to "LRC-V3" 6193 | -8/Storage | Garrison activated, responded to threat 6302 | -8/Storage | Met a pair of Derelict thieves 6334 | -8/Storage | Used back door to open Recycling access 6334 | -8/Storage | Discovered new exit (range 5) 6367 | -8/Storage | Entered Recycling 6367 | -8/Recycling | Accompanied by 12 allies 6722 | -8/Recycling | Found Prototype Device 6722 | -8/Recycling | Identified Scrap Engine 6725 | -8/Recycling | Entered Scraplab 6869 | -8/Recycling | Build established: Commander-Mutant 6938 | -8/Recycling | Identified exit to Factory 7278 | -8/Recycling | Build established: Commander-Construct 7656 | -8/Recycling | Core integrity restored by X0-1V1 (+188) 7696 | -8/Recycling | X0-1V1 mutated your Weapon slot to Propulsion slot 7811 | -8/Recycling | Entered Factory 7811 | -6/Factory | Accompanied by 20 allies 7811 | -6/Factory | Evolved 4 slots: Power x1, Utility x2, Weapon x1 7812 | -6/Factory | Loaded intel: 81 trap records 7864 | -6/Factory | X0-1V1 added 0b10 threat records associated with you (major) 7891 | -6/Factory | Discovered new exit (range 6) 7944 | -6/Factory | Identified exit to Lower Caves 7944 | -6/Factory | Identified exit to Extension 8019 | -6/Factory | X0-1V1 sent you to a vault 8043 | -6/Factory | Found Prototype Protection 8043 | -6/Factory | Identified Med. Regenerative Plating 8053 | -6/Factory | Found Prototype Device 8053 | -6/Factory | Identified Skeleton Box 8175 | -6/Factory | Lost 6 allies 8175 | -6/Factory | Entered Lower Caves 8175 | -6/Lower Caves | Accompanied by 4 allies 8178 | -6/Lower Caves | Spotted B-75 Beast 8202 | -6/Lower Caves | Destroyed B-75 Beast 8225 | -6/Lower Caves | Lost 4 allies 8382 | -6/Lower Caves | Learned location of 1 exit from Factory 8391 | -6/Lower Caves | Identified exit to Lower Caves 8391 | -6/Lower Caves | X0-1V1 revealed exit location to -6/Lower Caves 8415 | -6/Lower Caves | Build established: Construct 8634 | -6/Lower Caves | X0-1V1 vaporized surrounding terrain (radius 21) 8761 | -6/Lower Caves | Entered another Lower Caves area 8771 | -6/Lower Caves | Discovered new exit (range 13) 8945 | -6/Lower Caves | System corruption reached 10% 9134 | -6/Lower Caves | Discovered new exit (range 16) 9189 | -6/Lower Caves | Entered Zion 9204 | -6/Zion | Identified exit to Proximity Caves 9207 | -6/Zion | Learned Factory trap positions 9244 | -6/Zion | System corruption cleaned by Quarantine Array 9445 | -6/Zion | Found CR-A16's Pointy Stick 9650 | -6/Zion | Given A8's code to call for help 9779 | -6/Zion | Given the Hacking Drone Bay 9780 | -6/Zion | Found Prototype Device 9880 | -6/Zion | Visited the Megawrench Repair Shop 10039 | -6/Zion | Met Imprinter 10123 | -6/Zion | Remotely autohacked Sealed Blast Doors 10136 | -6/Zion | Remotely autohacked Sealed Blast Doors 10136 | -6/Zion | Remotely autohacked Sealed Blast Doors 10136 | -6/Zion | Remotely autohacked Sealed Blast Doors 10451 | -6/Zion | Megawrench repaired 4 parts 10563 | -6/Zion | Attacked by Zionites 10564 | -6/Zion | Found Prototype Energy Gun 10564 | -6/Zion | Identified D4-RBY's Behemoth Befriender 10844 | -6/Zion | Entered Proximity Caves 10948 | -5/Proximity Caves | Attracted the attention of an 0b10 checkpoint 11009 | -5/Proximity Caves | Identified exit to Factory 11009 | -5/Proximity Caves | X0-1V1 revealed exit location to -5/Factory 11209 | -5/Proximity Caves | X0-1V1 activates XOMVISION 11433 | -5/Proximity Caves | Entered Factory 11433 | -5/Factory | Evolved 2 slots: Propulsion x1, Weapon x1 11434 | -5/Factory | Identified exit to Upper Caves 11435 | -5/Factory | Loaded intel: 109 trap records 11549 | -5/Factory | Garrison activated, responded to threat 11666 | -5/Factory | X0-1V1 added 0b10 threat records associated with you (considerable) 11696 | -5/Factory | Entered Upper Caves 11728 | -5/Upper Caves | X0-1V1 activates XOMVISION 11859 | -5/Upper Caves | Learned 4 Factory zone layouts 11947 | -5/Upper Caves | Found Exp. Targeting Computer 12006 | -5/Upper Caves | Discovered new exit (range 10) 12147 | -5/Upper Caves | Entered another Upper Caves area 12157 | -5/Upper Caves | Discovered new exit (range 8) 12316 | -5/Upper Caves | X0-1V1 activates XOMVISION 12486 | -5/Upper Caves | X0-1V1 vaporized surrounding terrain (radius 18) 12523 | -5/Upper Caves | Entered a destroyed Warlord outpost 12548 | -5/Upper Caves | Learned Factory garrison access intel 12550 | -5/Upper Caves | Learned Factory terminal intel 12575 | -5/Upper Caves | Discovered new exit (range 10) 12724 | -5/Upper Caves | X0-1V1 sent hostile H-66 Slayer (x2) 12842 | -5/Upper Caves | Entered Warlord 12870 | -5/Warlord | System corruption cleaned by Quarantine Array 13007 | -5/Warlord | Met Warlord 13032 | -5/Warlord | Warlord's base attacked by MAIN.C 13189 | -5/Warlord | Found Prototype Energy Gun 13190 | -5/Warlord | Identified Vortex Shotgun 13192 | -5/Warlord | Found Vortex Shotgun 13209 | -5/Warlord | System corruption reached 10% 13230 | -5/Warlord | Identified exit to Proximity Caves 13230 | -5/Warlord | X0-1V1 revealed exit location to -4/Proximity Caves 13340 | -5/Warlord | Found Prototype Hackware 13351 | -5/Warlord | Found Prototype Processor 13382 | -5/Warlord | Warlord forces counterattacked 13455 | -5/Warlord | Lost 7 allies 13460 | -5/Warlord | Learned Testing stockpile data 13460 | -5/Warlord | Learned 4 Research zone layouts 13460 | -5/Warlord | Learned 4 Research zone layouts 13460 | -5/Warlord | Learned 4 Access zone layouts 13461 | -5/Warlord | Learned Research repair station intel 13485 | -5/Warlord | Spotted Striker 13485 | -5/Warlord | Spotted Executioner 13502 | -5/Warlord | Destroyed Executioner 13537 | -5/Warlord | Lost 16 allies 13538 | -5/Warlord | Spotted Striker 13560 | -5/Warlord | Spotted Striker 13581 | -5/Warlord | Destroyed Striker 13588 | -5/Warlord | Spotted Executioner 13597 | -5/Warlord | X0-1V1 downgraded hostiles (x1) 13602 | -5/Warlord | Destroyed 8 combat bots 13613 | -5/Warlord | Spotted B-75 Beast 13618 | -5/Warlord | Spotted B-86 Titan 13631 | -5/Warlord | Rewired B-75 Beast 13666 | -5/Warlord | Rewired B-86 Titan 13681 | -5/Warlord | Found Corrupted Prototype Device 13684 | -5/Warlord | Identified Adv. Kinecellerator 13685 | -5/Warlord | System corruption reached 30% 13706 | -5/Warlord | X0-1V1 activates XOMVISION 13707 | -5/Warlord | Warlord base infiltrated, sounded retreat 13710 | -5/Warlord | Spotted Striker 13728 | -5/Warlord | Spotted Striker 13733 | -5/Warlord | P-80 Master assimilated allied Beast 6a 13754 | -5/Warlord | Identified Spectral Analyzer 13760 | -5/Warlord | Spotted Striker 13772 | -5/Warlord | Spotted Executioner 13772 | -5/Warlord | Spotted Striker 13782 | -5/Warlord | Lost 3 parts (2u1w) 13789 | -5/Warlord | Spotted Striker 13806 | -5/Warlord | Found Prototype Device 13813 | -5/Warlord | Found Prototype Launcher 13813 | -5/Warlord | Identified Chain Missile Launcher 13816 | -5/Warlord | Crushed by falling debris 13818 | -5/Warlord | Core integrity fell below 50% 13832 | -5/Warlord | Spotted Executioner 13832 | -5/Warlord | Spotted Striker 13832 | -5/Warlord | Spotted Striker 13833 | -5/Warlord | Destroyed Executioner 13851 | -5/Warlord | Entered Proximity Caves 13895 | -4/Proximity Caves | Lost 5 parts (2p1u2w) 13905 | -4/Proximity Caves | Destroyed 18 combat bots 13978 | -4/Proximity Caves | Attracted the attention of an 0b10 checkpoint 13986 | -4/Proximity Caves | X0-1V1 mutated your Utility slot to Weapon slot 13999 | -4/Proximity Caves | Discovered new exit (range 23) 14032 | -4/Proximity Caves | Learned location of 1 exit from Upper Caves 14575 | -4/Proximity Caves | X0-1V1 activates XOMVISION 14782 | -4/Proximity Caves | Entered Factory 14782 | -4/Factory | Evolved 2 slots: Utility x2 14784 | -4/Factory | Loaded intel: 26 terminal locations 14785 | -4/Factory | Loaded intel: 4 garrison access locations 14786 | -4/Factory | Identified Exp. Shock Absorption System 14892 | -4/Factory | Identified exit to Upper Caves 15094 | -4/Factory | Identified exit to Research 15094 | -4/Factory | X0-1V1 revealed exit location to -3/Research 15136 | -4/Factory | Entered Upper Caves 15137 | -4/Upper Caves | Identified exit to Upper Caves 15151 | -4/Upper Caves | Ambushed by wild Derelicts 15214 | -4/Upper Caves | Learned Research emergency access door positions 15258 | -4/Upper Caves | Spotted B-86 Titan 15295 | -4/Upper Caves | Rewired B-86 Titan 15376 | -4/Upper Caves | Entered another Upper Caves area 15376 | -4/Upper Caves | Accompanied by 1 ally 15376 | -4/Upper Caves | Spotted B-86 Titan 15383 | -4/Upper Caves | Rewired B-86 Titan 15403 | -4/Upper Caves | Learned location of Quarantine (-2) 15408 | -4/Upper Caves | X0-1V1 activates XOMVISION 15564 | -4/Upper Caves | X0-1V1 upgraded ally (x1) 15575 | -4/Upper Caves | Discovered new exit (range 4) 15846 | -4/Upper Caves | Entered Zhirov 15846 | -4/Zhirov | Accompanied by 1 ally 15846 | -4/Zhirov | Discovered new exit (range 3) 15862 | -4/Zhirov | Met Zhirov 15883 | -4/Zhirov | Learned location of Command (-1) 15902 | -4/Zhirov | Zhirov requested help retrieving the SGEMP Prototype 15915 | -4/Zhirov | Found Alien Artifact 15916 | -4/Zhirov | Identified Integrated Reactor 15916 | -4/Zhirov | Installed Integrated Reactor, increased core energy generation (+10) 16050 | -4/Zhirov | Found Alien Artifact 16355 | -4/Zhirov | Cloak Generator disabled 16355 | -4/Zhirov | Attacked by Zhirov 16365 | -4/Zhirov | Enhanced Grunts warped into view 16370 | -4/Zhirov | Destroyed Zhirov 16380 | -4/Zhirov | Zhirov detonated his lab 16411 | -4/Zhirov | Lost 7 allies 16503 | -4/Zhirov | Entered Proximity Caves 16503 | -3/Proximity Caves | Accompanied by 1 ally 16506 | -3/Proximity Caves | Attracted the attention of an 0b10 outpost 16584 | -3/Proximity Caves | Found DCF Scrap (13 items) 16654 | -3/Proximity Caves | Destroyed 7 combat bots 16786 | -3/Proximity Caves | Discovered exit to Research (range 4) 16891 | -3/Proximity Caves | Entered Research 16891 | -3/Research | Evolved 2 slots: Propulsion x1, Utility x1 16892 | -3/Research | Identified exit to Armory 16893 | -3/Research | Identified exit to Testing 16895 | -3/Research | Loaded intel: 4 repair station locations 16913 | -3/Research | Watched by a mysterious "MATRIX" hacker 16913 | -3/Research | Targeted by mysterious "MATRIX" hacker 16941 | -3/Research | Fabricated Flak Gun (x2) 16963 | -3/Research | Identified System Mapper 16981 | -3/Research | X0-1V1 released a cloud of subatomizers 17010 | -3/Research | X0-1V1 sent you to a vault 17011 | -3/Research | Found Prototype Device 17013 | -3/Research | Identified Exp. Sensor Array 17016 | -3/Research | Found Prototype Device 17017 | -3/Research | Identified Exp. Shield Generator 17021 | -3/Research | Found Prototype Device 17022 | -3/Research | Identified Thermal Barrier 17049 | -3/Research | Found Prototype Processor 17050 | -3/Research | Identified Exp. Armor Integrity Analyzer 17053 | -3/Research | Found Prototype Slashing Weapon 17054 | -3/Research | Identified Hvy. Scimitar of Distortion 17067 | -3/Research | Found Chaos Jack 17070 | -3/Research | Spotted B-86 Titan 17090 | -3/Research | Rewired B-86 Titan 17263 | -3/Research | Build established: Hacker-Construct 17607 | -3/Research | Identified exit to Research 17607 | -3/Research | X0-1V1 revealed exit location to -2/Research 17681 | -3/Research | Garrison activated, responded to threat 17690 | -3/Research | X0-1V1 sent allied Ranger (x2) 17727 | -3/Research | X0-1V1 sent allied B-90 Cyclops (x1) 17968 | -3/Research | X0-1V1 revealed exit location to -2/Research 17980 | -3/Research | Found Fusion Bomb Launcher 18032 | -3/Research | X0-1V1 activates XOMVISION 18077 | -3/Research | Sterilization system engaged 18077 | -3/Research | Non-combat units ordered to evacuate 18177 | -3/Research | Combat units ordered to evacuate 18194 | -3/Research | Cargo convoy interrupted 18218 | -3/Research | X0-1V1 revealed exit location to -2/Research 18357 | -3/Research | Spotted B-86 Titan 18367 | -3/Research | Rewired B-86 Titan 18377 | -3/Research | Ambient heat levels rising (+10) 18464 | -3/Research | Destroyed Titan 8b 18476 | -3/Research | Entered Testing 18594 | -3/Testing | X0-1V1 vaporized surrounding terrain (radius 20) 18632 | -3/Testing | Found Quantum Capacitor 18653 | -3/Testing | Found Prototype Hackware 18666 | -3/Testing | Found Prototype Device 18666 | -3/Testing | Identified Exp. Focal Shield 18723 | -3/Testing | Spotted Striker 18935 | -3/Testing | Found Prototype Hackware 19040 | -3/Testing | Spotted PP-B07PTTV7D9 19051 | -3/Testing | Found Prototype Energy Gun 19051 | -3/Testing | Identified Tachyon Dispersion Ray 19139 | -3/Testing | X0-1V1 activates XOMVISION 19159 | -3/Testing | Fabricated Exp. Thermal Shield? 19206 | -3/Testing | Found Portable AFG 19227 | -3/Testing | X0-1V1 enhanced Transport squad support 19359 | -3/Testing | X0-1V1 sent you to a vault 19463 | -3/Testing | Lost 3 allies 19646 | -3/Testing | X0-1V1 announced a LAN party 19722 | -3/Testing | Spotted CY-PHR 19726 | -3/Testing | First assault squad dispatched 19731 | -3/Testing | Identified Ghost Barrier 19783 | -3/Testing | Crushed by falling debris 19801 | -3/Testing | Lost 4 parts (2u2w) 19810 | -3/Testing | System corruption reached 10% 19849 | -3/Testing | Entered Research 19849 | -2/Research | Warlord forces began assault on 0b10 19849 | -2/Research | Evolved 2 slots: Power x1, Utility x1 19939 | -2/Research | Identified Exp. Hacking Suite 19959 | -2/Research | Research machine network offline 20044 | -2/Research | Spotted B-90 Cyclops 20073 | -2/Research | Rewired B-90 Cyclops 20093 | -2/Research | Identified exit to Quarantine 20093 | -2/Research | X0-1V1 revealed exit location to -2/Quarantine 20114 | -2/Research | Spotted Striker 20118 | -2/Research | Spotted Striker 20143 | -2/Research | Destroyed Striker 20148 | -2/Research | Destroyed Striker 20214 | -2/Research | Borebot progress halted 20327 | -2/Research | Met up with Warlord 20348 | -2/Research | X0-1V1 enhanced Transport squad support 20367 | -2/Research | Met DD-05H 20383 | -2/Research | Found Prototype Launcher 20385 | -2/Research | Found Prototype Launcher 20385 | -2/Research | Identified Adv. Micro-nuke Launcher (x2) 20425 | -2/Research | Lost 4 allies 20431 | -2/Research | Spotted Striker 20441 | -2/Research | P-80 Master assimilated allied ZJ-0TX(m) 20557 | -2/Research | Spotted Executioner 20560 | -2/Research | Spotted Executioner 20581 | -2/Research | Allies destroyed Executioner 20591 | -2/Research | Found Prototype Processor 20591 | -2/Research | Identified Exp. Core Analyzer 20594 | -2/Research | Found Exp. Core Analyzer 20608 | -2/Research | Lost 3 allies 20707 | -2/Research | Discovered exit to Quarantine (range 8) 20850 | -2/Research | Warlord invited to help at Command 20850 | -2/Research | Given Cave Seal Controls access code 20852 | -2/Research | Spotted Executioner 20862 | -2/Research | Spotted Striker 20868 | -2/Research | P-80 Master assimilated allied TH-MTA(M) 20891 | -2/Research | Entered Quarantine 20910 | -2/Quarantine | Found Alien Artifact 20911 | -2/Quarantine | Lost 5 allies 20912 | -2/Quarantine | Found Alien Artifact 20913 | -2/Quarantine | Identified Dimensional Node Initializer (x2) 20913 | -2/Quarantine | Initialized slip node 20918 | -2/Quarantine | Found Alien Artifact 20919 | -2/Quarantine | Identified Hpw. Transdimensional Reconstructor 20919 | -2/Quarantine | Warped through subspace to slip node 20928 | -2/Quarantine | Found Alien Artifact 20929 | -2/Quarantine | Identified Transdimensional Reconstructor (x2) 20929 | -2/Quarantine | Warped through subspace to slip node 20937 | -2/Quarantine | Found Hpw. Transdimensional Reconstructor 20940 | -2/Quarantine | Found Transdimensional Reconstructor 20952 | -2/Quarantine | Garrison activated, responded to threat 21050 | -2/Quarantine | Cryocooling Duct disabled 21065 | -2/Quarantine | Ambient heat levels rising (+20) 21065 | -2/Quarantine | Non-combat units ordered to evacuate 21141 | -2/Quarantine | First assault squad dispatched 21204 | -2/Quarantine | Cryocooling Duct disabled 21219 | -2/Quarantine | Ambient heat levels rising (+20) 21219 | -2/Quarantine | Combat units ordered to evacuate 21272 | -2/Quarantine | Found Alien Impact Weapon 21319 | -2/Quarantine | Quarantine Guard activated 21358 | -2/Quarantine | Cryocooling Duct disabled 21360 | -2/Quarantine | Cryocooling Duct disabled 21373 | -2/Quarantine | Ambient heat levels rising (+20) 21375 | -2/Quarantine | Ambient heat levels rising (+20) 21417 | -2/Quarantine | Spotted Quarantine Guard 21458 | -2/Quarantine | Spotted Quarantine Guard 21469 | -2/Quarantine | Destroyed Quarantine Guard 21474 | -2/Quarantine | Spotted Quarantine Guard 21572 | -2/Quarantine | Spotted Quarantine Guard 21588 | -2/Quarantine | Destroyed Quarantine Guard 21617 | -2/Quarantine | X0-1V1 vaporized surrounding terrain (radius 17) 21630 | -2/Quarantine | Found Alien Artifact 21639 | -2/Quarantine | Spotted Quarantine Guard 21656 | -2/Quarantine | Spotted Quarantine Guard 21659 | -2/Quarantine | Spotted Fortress 21671 | -2/Quarantine | Identified Core Stripper 21687 | -2/Quarantine | Destroyed Fortress 21706 | -2/Quarantine | Destroyed Quarantine Guard 21808 | -2/Quarantine | Found Prototype Device 21808 | -2/Quarantine | Identified Exp. Force Field 21824 | -2/Quarantine | X0-1V1 sent you to a vault 22087 | -2/Quarantine | Found Alien Artifact 22146 | -2/Quarantine | Identified Terrabomb 22146 | -2/Quarantine | Identified Subatomic Replicator 22167 | -2/Quarantine | X0-1V1 sent hostile X-87 Electro (x3) 22189 | -2/Quarantine | System corruption reached 10% 22291 | -2/Quarantine | Rewired Quarantine Guard 22321 | -2/Quarantine | X0-1V1 announced a LAN party 22384 | -2/Quarantine | Found Prototype Device 22384 | -2/Quarantine | Identified Exp. EM Shield 22415 | -2/Quarantine | Found System Purifier 22509 | -2/Quarantine | Core integrity restored by X0-1V1 (+387) 22547 | -2/Quarantine | Discovered new exit (range 6) 22547 | -2/Quarantine | Discovered new exit (range 6) 22547 | -2/Quarantine | Spotted Quarantine Guard 22547 | -2/Quarantine | Spotted Quarantine Guard 22555 | -2/Quarantine | Allies destroyed Quarantine Guard 22561 | -2/Quarantine | Destroyed Quarantine Guard 22614 | -2/Quarantine | X0-1V1 added 0b10 threat records associated with you (major) 22707 | -2/Quarantine | Entered Protoforge 22815 | -2/Protoforge | Spotted B-90 Cyclops 22815 | -2/Protoforge | X0-1V1 sent you into danger 22815 | -2/Protoforge | Superfortress began startup sequence 22818 | -2/Protoforge | X0-1V1 upgraded hostiles (x1) 22818 | -2/Protoforge | Spotted B-99 Colossus 22849 | -2/Protoforge | Rewired B-99 Colossus 22864 | -2/Protoforge | X0-1V1 announced a LAN party 22877 | -2/Protoforge | Spotted Hotshot 22878 | -2/Protoforge | Spotted Hotshot 22891 | -2/Protoforge | Spotted Hotshot 22895 | -2/Protoforge | Spotted Hotshot 22899 | -2/Protoforge | Destroyed Hotshot 22907 | -2/Protoforge | Allies destroyed Hotshot 22929 | -2/Protoforge | Destroyed Hotshot 22930 | -2/Protoforge | Allies destroyed Hotshot 22952 | -2/Protoforge | X0-1V1 vaporized surrounding terrain (radius 21) 22967 | -2/Protoforge | Spotted Overlord 22977 | -2/Protoforge | X0-1V1 added 0b10 threat records associated with you (major) 23022 | -2/Protoforge | Destroyed Overlord 23047 | -2/Protoforge | Spotted Hotshot 23051 | -2/Protoforge | Spotted Hotshot 23053 | -2/Protoforge | Spotted Hotshot 23055 | -2/Protoforge | Spotted Hotshot 23057 | -2/Protoforge | Spotted Hotshot 23068 | -2/Protoforge | Lost 3 parts (2u1w) 23081 | -2/Protoforge | Spotted Hotshot 23092 | -2/Protoforge | Found Corrupted Prototype Ballistic Gun 23093 | -2/Protoforge | Identified Multirail 23097 | -2/Protoforge | Destroyed 16 combat bots 23098 | -2/Protoforge | Spotted Hotshot 23098 | -2/Protoforge | Spotted Hotshot 23102 | -2/Protoforge | Spotted Hotshot 23102 | -2/Protoforge | Spotted Hotshot 23107 | -2/Protoforge | Spotted Hotshot 23109 | -2/Protoforge | Destroyed Hotshot 23109 | -2/Protoforge | Destroyed Hotshot 23112 | -2/Protoforge | Destroyed Hotshot 23114 | -2/Protoforge | Spotted Hotshot 23114 | -2/Protoforge | Destroyed Hotshot 23114 | -2/Protoforge | Spotted Hotshot 23116 | -2/Protoforge | Spotted Hotshot 23117 | -2/Protoforge | Destroyed Hotshot 23125 | -2/Protoforge | Destroyed Hotshot 23127 | -2/Protoforge | Destroyed Hotshot 23127 | -2/Protoforge | Destroyed Hotshot 23163 | -2/Protoforge | Destroyed 10 combat bots 23207 | -2/Protoforge | First assault squad dispatched 23234 | -2/Protoforge | Discovered new exit (range 13) 23264 | -2/Protoforge | Weapon slot count temporarily expanded by X0-1V1 (+3) 23304 | -2/Protoforge | Initialized slip node 23428 | -2/Protoforge | Used Terrabomb 23428 | -2/Protoforge | Additional patrols dispatched to research labs 23465 | -2/Protoforge | Spotted Immortal 23481 | -2/Protoforge | Spotted Immortal 23523 | -2/Protoforge | Spotted Hotshot 23577 | -2/Protoforge | Destroyed Immortal 23666 | -2/Protoforge | X0-1V1 whisked you away to safety 23763 | -2/Protoforge | Found Prototype Device 23764 | -2/Protoforge | Identified Exp. Trap Extractor 23769 | -2/Protoforge | Found Exp. Trap Extractor 23772 | -2/Protoforge | Found Exp. Trap Extractor 23777 | -2/Protoforge | Found Exp. Trap Extractor 23790 | -2/Protoforge | Found Prototype Device 23791 | -2/Protoforge | Identified Exp. System Purifier 23891 | -2/Protoforge | Found Prototype Device 24041 | -2/Protoforge | Spotted V878-s 24043 | -2/Protoforge | Spotted V123-t 24043 | -2/Protoforge | Spotted V364-u 24077 | -2/Protoforge | Core integrity fell below 50% 24096 | -2/Protoforge | X0-1V1 turns hostiles against one another 24175 | -2/Protoforge | Spotted V262-x 24192 | -2/Protoforge | Lost 8 parts (1p4u3w) 24222 | -2/Protoforge | Spotted Immortal 24222 | -2/Protoforge | Spotted Immortal 24222 | -2/Protoforge | Spotted Immortal 24224 | -2/Protoforge | Core integrity fell below 20% 24228 | -2/Protoforge | Lost 3 allies 24232 | -2/Protoforge | Warped through subspace to slip node 24240 | -2/Protoforge | Entered Access 24240 | -1/Access | Evolved 2 slots: Utility x2 24261 | -1/Access | Lost 4 parts (2p1u1w) 24264 | -1/Access | Identified exit to Command 24432 | -1/Access | X0-1V1 redirected Transport squads to designated parking area 24491 | -1/Access | Lost 3 parts (1p1u1w) 24498 | -1/Access | Build established: Hacker-Mutant 24515 | -1/Access | Weapon slot count temporarily expanded by X0-1V1 (+1) 24562 | -1/Access | Spotted B-99 Colossus 24565 | -1/Access | X0-1V1 destroyed Energy Cycler 24565 | -1/Access | Energy Cycler disabled 24565 | -1/Access | Spotted B-99 Colossus 24586 | -1/Access | Entered Command 24613 | -1/Command | Lost 5 parts (1p3u1w) 24681 | -1/Command | Identified exit to Access_0 24681 | -1/Command | X0-1V1 revealed exit location to -1/Access_0 24792 | -1/Command | System corruption reached 10% 25008 | -1/Command | X0-1V1 sent allied S-43 Plague (x2) 25102 | -1/Command | Disengaged cave seal 25111 | -1/Command | Welcomed Warlord to Command 25112 | -1/Command | Core integrity fell below 50% 25141 | -1/Command | Lost 17 parts (2p6n7u2w) 25157 | -1/Command | Core integrity restored by X0-1V1 (+306) 25166 | -1/Command | Lost 7 allies 25228 | -1/Command | Derelicts emerged from the dark tunnel 25350 | -1/Command | X0-1V1 mutated your Propulsion slot to Utility slot 25392 | -1/Command | Build established: Mutant 25629 | -1/Command | Warlord commented on Warlord statues 25631 | -1/Command | Spotted M Guard 25633 | -1/Command | Spotted M Guard 25633 | -1/Command | Spotted Combat Programmer 25641 | -1/Command | Spotted Combat Programmer 25655 | -1/Command | X0-1V1 sent you to a vault 25670 | -1/Command | Found Prototype Device 25670 | -1/Command | Identified Femtoactuators 25682 | -1/Command | Found Exp. EM Disruption Field 25685 | -1/Command | Lost 4 parts (1p1n1u1w) 25688 | -1/Command | Found Prototype Device 25688 | -1/Command | Identified Exp. Actuator Array 25705 | -1/Command | Found Prototype Launcher 25705 | -1/Command | Identified Containment Facilitator 26030 | -1/Command | Build established: Tank 26252 | -1/Command | Phase Generator disabled 26270 | -1/Command | Disengaged cave seal 26270 | -1/Command | Derelicts emerged from the dark tunnel 26353 | -1/Command | X0-1V1 sent you into danger 26406 | -1/Command | Build established: Scavenger-Tank 26432 | -1/Command | Destroyed Combat Programmer 26447 | -1/Command | Destroyed M Guard 26453 | -1/Command | X0-1V1 sent allied S-43 Plague (x3) 26464 | -1/Command | Destroyed M Guard 26466 | -1/Command | Destroyed Combat Programmer 26466 | -1/Command | All MAIN.C guards destroyed 26492 | -1/Command | Lost 6 allies 26737 | -1/Command | Met MAIN.C 26747 | -1/Command | 0b10 Conduit disabled 26764 | -1/Command | Build established: Tank 26769 | -1/Command | Destroyed MAIN.C Shell 26772 | -1/Command | MAIN.C activated Command garrisons 26837 | -1/Command | Core integrity fell below 20% 26845 | -1/Command | Destroyed by MAIN.C with Improved Heavy Machine Gun Last Messages --------------- 26830_ Acquired 5 matter. 26830_ X0-1V1 is amused. 26830_ Dropped Exp. Actuator Array. 26830_ Acquired 25 matter. 26832_ Knocked back. 26833_ Acquired 3 matter. 26834_ RI-CMT(g) destroyed. 26836_ Knocked back. 26837_ System corrupted: Component data lost. 26837_ Acquired 26 matter. 26838_ Acquired 22 matter. 26839_ Slammed into MAIN.C. 26839_ Knocked back. 26840_ Slammed into MAIN.C. 26842_ Adv. Heat Sink destroyed. 26842_ X0-1V1 is amused. 26842_ Femtoactuators destroyed. 26842_ Critical hit (Blast). 26842_ Knocked back. 26845_ X0-1V1 howls with laughter! Map ----- +----------------------------------------------------+ | ?????????????????????????????????????????????????? | | ?????????????????????????????????????????????????? | | ?????????????????????????????????????????????????? | | ?????????????????????????????????????????????????? | | ?????????????????????????????????????????????????? | | ?????????????????????????????????????????????????? | | ?????????????????????????????????????????????????? | | ?????????????????????????????????????????????????? | | ?????????????????????????????????????????????????? | | ?????????????????????????????????????????????????? | | ?????????????????????????????????????????????????? | | ?????????????????????????????????????????????????? | | ?????????????????????????????????????????????????? | | ?????????????????????????????????????????????????? | | ?????????????????????????????????????????????????? | | ?????????????????????????????????????????????????? | | ???????????????????????####????#############?????? | | ?????????????????????#"""""????"""" #?????? | | ?????????????????????#"" ?"" ! #?????? | | ?????????????????????#""""" "" ####### | | ?????????????????????#""""""""""" / % | | ?????????????????????#" " """ /% | | ?????????????????????#"" """""" %%% | | ?????????????????????#"" """" %%####### | | ?????????????????????# " """" % % %%#?????? | | ?????????????????????# " @M % !#?????? | | ?????????????????????# %% % #?????? | | ?????????????????????#"" %% % % #?????? | | ?????????????????????#" % %% """"#?????? | | ?????????????????????# % " """"""#?????? | | ?????????????????????# " "%" " #?????? | | ?????????????????????# " " " #?????? | | ?????????????????????" " " " """" " #?????? | | ?????????????????????" """ " " """" #?????? | | ?????????????????????" " " " " #?????? | | ?????????????????????# " """"""" " #?????? | | ?????????????????????# " """ " """"""""#?????? | | ?????????????????????# """ " " " ??????? | | ?????????????????????######################??????? | | ?????????????????????????????????????????????????? | | ?????????????????????????????????????????????????? | | ?????????????????????????????????????????????????? | | ?????????????????????????????????????????????????? | | ?????????????????????????????????????????????????? | | ?????????????????????????????????????????????????? | | ?????????????????????????????????????????????????? | | ?????????????????????????????????????????????????? | | ?????????????????????????????????????????????????? | | ?????????????????????????????????????????????????? | | ?????????????????????????????????????????????????? | +----------------------------------------------------+ Best States ------------- Heat Dissipation 160 Coolant Potential 120 Energy Generation 105 Energy Capacity 3377 Matter Stores 1100 Matter Capacity 1100 Sight Range 30 Terrain Scan Density 10 Jamming Range 12 Cloak Strength 4 Power Amplification 40 Additional Mass Support 9 Armor Coverage 800 Resistance: TH 60 Resistance: EM 75 Weapon Cycling 20 Phase Shifting 15 Evasion (%) 73 Targeting Accuracy 18 Core Analysis 12 Armor Integrity Analysis 50 Recoil Reduction 6 Energy Filtering 30 Kinecelleration 50 Offensive Hacking 36 Defensive Hacking 20 Authchip Count 4 Trap Extractor Capacity 4 Item Schematics ----------------- Flak Gun | -8/Recycling | Hacked Tesla Rifle | -6/Zion | Archive Proton Cannon | -6/Zion | Archive Imp. Transmission Jammer | -6/Zion | Archive Drone Bay | -6/Zion | Archive Hvy. Gauss Cannon | -6/Zion | Archive Enh. Optical Array | -6/Zion | Archive Adv. Trap Extractor | -6/Zion | Archive Matter Compressor | -6/Zion | Archive Imp. Focal Shield | -6/Zion | Archive Arm. Leg | -6/Zion | Archive Imp. Recalibrator | -6/Zion | Archive IFF Parser | -6/Zion | Archive Phase Shifter | -6/Zion | Archive Imp. Shock Absorption System | -6/Zion | Archive Phase Gun | -6/Zion | Archive Assault Drone Bay | -4/Zhirov | Free Exp. Heat Sink | -4/Zhirov | Free Exp. Optical Array | -4/Zhirov | Free Imp. Arc Thrower | -4/Zhirov | Free Tesla Bomb Launcher | -3/Testing | Archive Nanosword | -3/Testing | Archive Exp. EM Disruption Field | -3/Testing | Archive Centrium Greatsword | -3/Testing | Archive Exp. Energy Well | -2/Protoforge | Archive Cld. Impulse Thruster | -2/Protoforge | Archive Robot Schematics ------------------ M-22 Extractor | -6/Zion | Archive G-50 Soldier | -6/Zion | Archive S-27 Virus | -6/Zion | Archive X-82 Rainmaker | -6/Zion | Archive A-02 Transporter | -2/Protoforge | Archive B-74 Champion | -2/Protoforge | Archive Fabricated ------------ Flak Gun | x2 | -3/Research | Authchip Exp. Thermal Shield | x1 | -3/Testing | Preloaded Repaired ---------- Nothing Studied --------- None Alien Tech Used ----------------- Integrated Reactor Dimensional Node Initializer High-powered Transdimensional Reconstructor Transdimensional Reconstructor Core Stripper Terrabomb Achievements -------------- None Challenges ------------ None Game ------ Seed HardcellLaserSpiker Manual? 0 Play Time 04:06:30 Cumulative 999.0 hours Start 2026.07.15 @ 19:32:26 End 2026.07.17 @ 01:07:03 Sessions 36 Manual Loads 0 Difficulty Rogue Special Mode None Game No. 1134 Rogue 1134 Adventurer 0 Explorer 0 Win Type - Total 45 Types 22/1/9/3/2/1/3/2/1/1 Lore% 98 Gallery% 97 Achievement% 93 Wizard Run 0 Options --------- Layout 0 ASCII 0 Keyboard 0 Movement Mouse Keybinds 0 Fullscreen 1 Font 24/X11 Map View 76x50 Zoom Use 0% Tactical HUD 1 Map Filters NONE Filters NONE Steam 1 RUN: 0ed54e63-f6a0-4a12-a78b-bbb5af563697